{"text_format":"1","workbook":"xlsx","n_sheets":4,"sheets":["Кэфы","Выгрузка с сайта","Выгрузка","Вычисления"],"not_rendered":{"charts":0,"images":1,"macros":1,"external_links":0,"defined_names":2,"comments":0,"pivot_tables":0},"unopened":[],"bounds":{"document_bytes":16777216,"sheet_cells":100000,"rows_first":2000,"rows_last":500,"rows_between":2000,"halvings":0,"cell_chars":16384,"cell_head_chars":4096},"cells_cut":0,"cells_raw":0,"read":"whole","date_system":"1900"}

{"sheet":"Кэфы","index":0,"n_rows":25,"n_cols":6,"rows_kept":25,"cut":false,"hidden":false,"merged":[[15,1,18,5]]}
[]
[]
[]
[null,"До следующего обновления цен на рыбу осталось:",null,null,{"$f":"HOUR(TEXT(IF(TEXT(MID(INDEX(Выгрузка!$A:$A,MATCH(\"Последнее изменение цен было в *\",Выгрузка!$A:$A,0),1),32,5)*1+5/24,\"ч:мм\")*1-(NOW()-TODAY())<0, TEXT(MID(INDEX(Выгрузка!$A:$A,MATCH(\"Последнее изменение цен было в *\",Выгрузка!$A:$A,0),1),32,5)*1+5/24,\"ч:мм\")*1-(NOW()-TODAY())+1,TEXT(MID(INDEX(Выгрузка!$A:$A,MATCH(\"Последнее изменение цен было в *\",Выгрузка!$A:$A,0),1),32,5)*1+5/24,\"ч:мм\")*1-(NOW()-TODAY())),\"ч:мм\"))&\"ч \"&MINUTE(TEXT(IF(TEXT(MID(INDEX(Выгрузка!$A:$A,MATCH(\"Последнее изменение цен было в *\",Выгрузка!$A:$A,0),1),32,5)*1+5/24,\"ч:мм\")*1-(NOW()-TODAY())<0, TEXT(MID(INDEX(Выгрузка!$A:$A,MATCH(\"Последнее изменение цен было в *\",Выгрузка!$A:$A,0),1),32,5)*1+5/24,\"ч:мм\")*1-(NOW()-TODAY())+1,TEXT(MID(INDEX(Выгрузка!$A:$A,MATCH(\"Последнее изменение цен было в *\",Выгрузка!$A:$A,0),1),32,5)*1+5/24,\"ч:мм\")*1-(NOW()-TODAY())),\"ч:мм\"))&\"мин\"","v":"3ч 19мин"},"реального времени"]
[]
[null,"Кит","Шт.","Текущий кэф","Макс. кэф","% от макс.*"]
[null,"Кашалот",{"$f":"INDEX(Вычисления!$1:$1048576,MATCH($B7,Вычисления!$A:$A,0)-2,5)","v":143},{"$f":"IF(C7<=10, \"Баг с ценой\", VLOOKUP(B7,Вычисления!$A:$E,5,0))","v":1.0319361269923646},1.0446149106116156,{"$f":"IF(D7=\"Баг с ценой\", \"Не продавай!\",D7/E7)","v":0.98786272004117992}]
[null,"Кит горбатый",{"$f":"INDEX(Вычисления!$1:$1048576,MATCH($B8,Вычисления!$A:$A,0)-2,5)","v":61},{"$f":"IF(C8<=10, \"Баг с ценой\", VLOOKUP(B8,Вычисления!$A:$E,5,0))","v":1.0904153231416605},1.0965083682400059,{"$f":"IF(D8=\"Баг с ценой\", \"Не продавай!\",D8/E8)","v":0.99444322973282429}]
[null,"Кит горбатый-альбинос",{"$f":"INDEX(Вычисления!$1:$1048576,MATCH($B9,Вычисления!$A:$A,0)-2,5)","v":12},{"$f":"IF(C9<=10, \"Баг с ценой\", VLOOKUP(B9,Вычисления!$A:$E,5,0))","v":1.7310215652406074},1.7322076348486417,0.99931528438960038]
[null,"Кит синий северный",{"$f":"INDEX(Вычисления!$1:$1048576,MATCH($B10,Вычисления!$A:$A,0)-2,5)","v":49},{"$f":"IF(C10<=10, \"Баг с ценой\", VLOOKUP(B10,Вычисления!$A:$E,5,0))","v":1.4366748284551432},1.4433169154018517,0.9953980398373844]
[null,"Кит серый",{"$f":"INDEX(Вычисления!$1:$1048576,MATCH($B11,Вычисления!$A:$A,0)-2,5)","v":2},{"$f":"IF(C11<=10, \"Баг с ценой\", VLOOKUP(B11,Вычисления!$A:$E,5,0))","v":"Баг с ценой"},0.952566527000136,"Не продавай!"]
[null,"Кит японский",{"$f":"INDEX(Вычисления!$1:$1048576,MATCH($B12,Вычисления!$A:$A,0)-2,5)","v":11},{"$f":"IF(C12<=10, \"Баг с ценой\", VLOOKUP(B12,Вычисления!$A:$E,5,0))","v":2.1640484601955841},2.1655516836404356,0.99930584734771855]
[null,"Сейвал или кит ивасевый",{"$f":"INDEX(Вычисления!$1:$1048576,MATCH($B13,Вычисления!$A:$A,0)-2,5)","v":67},{"$f":"IF(C13<=10, \"Баг с ценой\", VLOOKUP(B13,Вычисления!$A:$E,5,0))","v":0.61296328102393738},0.61385984162205964,0.99853947018955791]
[null,"Финвал",{"$f":"INDEX(Вычисления!$1:$1048576,MATCH($B14,Вычисления!$A:$A,0)-2,5)","v":7011},{"$f":"IF(C14<=10, \"Баг с ценой\", VLOOKUP(B14,Вычисления!$A:$E,5,0))","v":0.21542205841613671},0.92696141974044077,0.23239592698092787]
[]
[null,"* Показывает в %, насколько текущая цена велика в сравнении с максимальной известной мне. Условные обозначения в виде стрелок и соответствующие значения описаны под таблицей. Изучи их и прими решение о продаже самостоятельно или в соответствии с рекомендациями."]
[]
[]
[]
[]
[null,"[98% - 100%] Смело продавай, прекрасная цена"]
[null,"[95% - 98%] Тоже отличная цена, но нередко бывает лучше"]
[null,"[90% - 95%] Средняя цена. Лучше придержи и продай позже"]
[null,"[80% - 90%] Плохая цена. Продавай, только если срочно нужны деньги"]
[null,"Ниже 80% Рыба не в цене. Ни в коем случае не продавай"]

{"sheet":"Выгрузка с сайта","index":1,"n_rows":1354,"n_cols":5,"rows_kept":1354,"cut":false,"hidden":true,"merged":[]}
["Место:","Рыба:","Рыба:2","Прогресс:","Продано (шт):"]
[1,"","Калкан черноморский","",0]
[2,"","Камбала двухцветная","",0]
[3,"","Акула скульптурная","",0]
[4,"","Акула шершавая","",0]
[5,"","Лихия","",0]
[6,"","Палтус американский","",0]
[7,"","Австралийский пилонос","",0]
[8,"","Маллисквама","",0]
[9,"","Минога сибирская","",0]
[10,"","Акула сигарная","",0]
[11,"","Осетр тихоокеанский","",0]
[12,"","Форель остроголовая","",0]
[16,"","Акула светлохвостая","",0]
[17,"","Акула - свинья","",0]
[18,"","Акула губастая","",0]
[19,"","Акула острозубая","",0]
[20,"","Пилонос японский","",0]
[21,"","Осетр адриатический","",0]
[22,"","Антимора  клюворылая","",0]
[23,"","Афалина","",0]
[24,"","Ремнезуб командорский","",0]
[25,"","Косатка малая","",0]
[26,"","Рыба луна короткая","",0]
[27,"","Косаткодельфин","",0]
[28,"","Манта рифовая","",0]
[29,"","Рыба-луна овальная","",0]
[30,"","Группер Малабарский","",0]
[31,"","Форель Дональдсона","",0]
[32,"","Хвостокол кольчатый","",0]
[33,"","Плиотрема","",0]
[34,"","Сарпа","",0]
[35,"","Центрина Австралийская","",0]
[36,"","Осьминог Думбо","",0]
[37,"","Кит синий альбинос","",0]
[38,"","Семга Камчатская","",0]
[40,"","Кижуч озерный","",0]
[41,"","Лазианциструс","",0]
[42,"","Носорог пятнистый","",0]
[43,"","Губка-лира","",0]
[44,"","Матамата","",0]
[45,"","Пирарара","",0]
[46,"","Акула плащеносная","",0]
[47,"","Жемчужная рыба","",0]
[48,"","Скат акулохвостый","",0]
[49,"","Пайара","",0]
[50,"","Форель апачей","",0]
[51,"","Алепизавр","",0]
[52,"","Черный нож","",0]
[53,"","Скат гладкий","",0]
[54,"","Кракен","",0]
[55,"","Пиранья крапчатая","",0]
[57,"","Клюворыл Шепарда","",0]
[58,"","Акула Мицукури","",0]
[59,"","Ремнезуб перуанский","",0]
[60,"","Рыба-сабля","",0]
[61,"","Акула эполетовая","",0]
[62,"","Мешкорот","",0]
[63,"","Катран вануатский","",0]
[64,"","Багре хигучи","",0]
[65,"","Хирург-Ахиллес","",0]
[66,"","Голец носатый","",0]
[67,"","Голец узонский","",0]
[68,"","Мегалодон","",0]
[70,"","Рыба-ремень, сельдяной король","",0]
[71,"","Кайман широкомордый","",0]
[72,"","Кои Асаги","",0]
[73,"","Галаксия чилийская","",0]
[74,"","Чешуеед,  Плагиотрем чешуеедный","",0]
[75,"","Акула-домовой","",0]
[76,"","Акула черная (Далатия)","",0]
[77,"","Краб-йети","",0]
[78,"","Акула светящаяся","",0]
[79,"","Акулеола черная","",0]
[81,"","Конус дворцовый","",0]
[82,"","Плоскоголов пятнистый","",0]
[84,"","Конус Мильн-Эдвардса","",0]
[85,"","Конус текстильный","",0]
[87,"","Конус мраморный","",0]
[88,"","Конус полосатый","",0]
[89,"","Луциан горбатый","",0]
[93,"","Скат тэниура лимма","",0]
[99,"","Акула - квагга","",0]
[102,"","Шипощёк длинноперый","",0]
[103,"","Карась морской чернополосый","",0]
[106,"","Группер красноротый","",0]
[107,"","Скат-орляк пятнистый","",0]
[109,"","Удильщик Джонсона","",0]
[110,"","Аба-аба","",0]
[111,"","Синодонтис вуалевый","",0]
[113,"","Линофрина индийская","",0]
[114,"","Велифер","",0]
[115,"","Макрурус вооруженный","",0]
[116,"","Рыба-кабан трехполосая","",0]
[118,"","Оксимонокант длиннорылый","",0]
[120,"","Полосатик Омуры","",0]
[121,"","Каранкс Гебера","",0]
[122,"","Кит северный гладкий","",0]
[123,"","Форель Бива","",0]
[124,"","Кинжалозуб","",0]
[125,"","Морская свинья обыкновенная","",0]
[126,"","Эолидия","",0]
[127,"","Кит южный гладкий","",0]
[128,"","Каранкс бронзовый","",0]
[129,"","Вьюн амурский","",0]
[130,"","Акула мозамбикская бычья","",0]
[131,"","Менхэден бразильский","",0]
[132,"","Морская свинья бесперая","",0]
[133,"","Бэрардиус Бэрда","",0]
[134,"","Сельдь чёшско-печорская","",0]
[135,"","Сельдь тихоокеанская","",0]
[136,"","Сельдь атлантическая","",0]
[137,"","Сельдь волжская","",0]
[138,"","Пузанок северокаспийский","",0]
[139,"","Семапрохилодус","",0]
[143,"","Акула рифовая","",0]
[150,"","Кланкулюс","",0]
[151,"","Граммистес шестиполосый","",0]
[152,"","Рыба-тряпка","",0]
[153,"","Чешуйчатник","",0]
[156,"","Тилозур красноморский","",0]
[157,"","Конус письменный","",0]
[158,"","Бычеглаз-хамрур","",0]
[159,"","Утконос","",0]
[160,"","Иния","",0]
[161,"","Колоссома","",0]
[162,"","Дианема полосатохвостая","",0]
[163,"","Дискус Хеккеля","",0]
[164,"","Лепоринус зебровый","",0]
[165,"","Милеус ленточный","",0]
[166,"","Милоссома килебрюхая","",0]
[167,"","Лепоринус Фредерика","",0]
[169,"","Джакунда","",0]
[170,"","Акара голубовато-пятнистая","",0]
[171,"","Акарихтис Хекеля","",0]
[172,"","Конгер обуд","",0]
[173,"","Кои Платинум Огон","",0]
[174,"","Анаконда","",0]
[175,"","Биара","",0]
[176,"","Гидромедуза бразильская","",0]
[177,"","Аравана черная","",0]
[178,"","Астронотус глаздчатый","",0]
[179,"","Павлиний окунь ленточный","",0]
[180,"","Хараки","",0]
[181,"","Хемиодопсис","",0]
[183,"","Уару","",0]
[184,"","Цихлазома мезонаута","",0]
[185,"","Акула плоскоголовая","",0]
[186,"","Запрора","",0]
[187,"","Ящерица каймановая","",0]
[188,"","Ампуллярия","",0]
[190,"","Пиракатинга","",0]
[192,"","Пака","",0]
[193,"","Пираиба","",0]
[194,"","Пиранья стройная","",0]
[195,"","Таедо","",0]
[196,"","Тамбаку","",0]
[197,"","Пирапитинга","",0]
[198,"","Пираруку","",0]
[199,"","Краб Мраморный","",0]
[200,"","Офиура полосатая","",0]
[201,"","Голубая линкия","",0]
[202,"","Фромия элегантная","",0]
[203,"","Морская звезда красношипая","",0]
[204,"","Тасманский краб","",0]
[205,"","Гимносарда","",0]
[207,"","Акула узкозубая","",0]
[208,"","Ангел  черноплавничный","",0]
[209,"","Гребешок коралловый","",0]
[211,"","Спинорог Розовохвостый","",0]
[212,"","Спинорог желтомордый","",0]
[214,"","Черепаха зеленая","",0]
[216,"","Конус Географический","",0]
[218,"","Стромбус Королевский","",0]
[221,"","Скат мозаичный","",0]
[223,"","Осьминог обыкновенный","",0]
[224,"","Тунец макрелевый","",0]
[226,"","Чоп","",0]
[228,"","Усач Валецкого","",0]
[229,"","Младица или Лосось дунайский","",0]
[231,"","Сиган звездчатый","",0]
[232,"","Кузовок рогатый","",0]
[233,"","Акула мальгашская","",0]
[234,"","Голец альпийский","",0]
[236,"","Логгерхед","",0]
[238,"","Евдошка европейская","",0]
[239,"","","",0]
[240,"","","",0]
[241,"","","",0]
[242,"","","",0]
[243,"","","",0]
[244,"","Кои Утсури","",0]
[245,"","Акула исландская","",0]
[246,"","","",0]
[247,"","Акула копьезубая","",0]
[248,"","","",0]
[249,"","Омар норвежский","",0]
[250,"","Омар европейский","",0]
[251,"","Осьминог семирукий","",0]
[253,"","Краб снежный","",0]
[254,"","Омуль баргузинский","",0]
[255,"","","",0]
[256,"","","",0]
[257,"","Костерь","",0]
[259,"","Амия","",0]
[260,"","Голец чукотский","",0]
[261,"","Осетр белый","",0]
[262,"","Хендфиш","",0]
[263,"","Морская свинья очковая","",0]
[264,"","Рыба-капля","",0]
[265,"","Саблезуб","",0]
[266,"","Бельдюга Андрияшева","",0]
[267,"","Макропинна","",0]
[268,"","Оринокский крокодил","",0]
[269,"","Кит гренландский","",0]
[271,"","Скампи  голубой","",0]
[272,"","Скат - кукушка","",0]
[273,"","Плавун южный","",0]
[274,"","Акула коромандельская","",0]
[275,"","Павлиний окунь королевский","",0]
[276,"","Нарвал","",0]
[281,"","Краб вельветовый","",0]
[282,"","Перечный слизняк","",0]
[284,"","Спинорог золотоплавниковый","",0]
[285,"","Глаукус","",0]
[286,"","Полосатик Идена","",0]
[287,"","Спинорог бело-зеленый","",0]
[288,"","Ремнезуб атлантический","",0]
[289,"","Серцевидка","",0]
[291,"","Морская свинья Далля","",0]
[293,"","Необерингиус Фрилея","",0]
[294,"","Креветка северная","",0]
[299,"","Буффало большеротый","",0]
[300,"","Буффало малоротый","",0]
[301,"","Рапана Венозная","",0]
[302,"","Венера воздушная","",0]
[303,"","Евдошка американская","",0]
[304,"","Панцирник мисиссипский","",0]
[305,"","Рак красный флоридский","",0]
[307,"","Панцирник длиннорылый","",0]
[312,"","Краб сине-красный","",0]
[313,"","Морская свинья аргентинская","",0]
[315,"","Рыбальдо","",0]
[316,"","Нереис","",0]
[318,"","Сцимнодалатия","",0]
[319,"","Цетотерий","",0]
[320,"","Акула юкатанская","",0]
[321,"","Отодус","",0]
[327,"","Акула-молот карибская","",0]
[328,"","Саблезуб короткозубый","",0]
[329,"","Нетопырь длиннорылый","",0]
[330,"","Опистопрокт коротконосый","",0]
[331,"","Диплобатис гайянский","",0]
[332,"","Гуаса","",0]
[333,"","Базилозавр","",0]
[334,"","Акула кубинская кошачья","",0]
[335,"","Макрель западноафриканская","",0]
[336,"","Акула большеглазая песчаная","",0]
[338,"","Батизавр воинственный","",0]
[339,"","Барбурисия рыжая","",0]
[340,"","Омар алый когтистый","",0]
[341,"","Омар мозамбикский","",0]
[342,"","Омосудид","",0]
[345,"","Парапристипомоид","",0]
[346,"","Скопелозавр","",0]
[347,"","Краб крестообразный","",0]
[349,"","Барракуда индийская","",0]
[355,"","Барракуда большеглазая","",0]
[356,"","Мобула терстони","",0]
[357,"","Гимантолоф атлантический","",0]
[360,"","Фундулюс","",0]
[361,"","Иглобрюх-попугайчик","",0]
[364,"","Группер темный","",0]
[368,"","Тарпон атлантический","",0]
[374,"","Бычерыл американский","",0]
[382,"","Кубера","",0]
[383,"","Устрица гигантская","",0]
[384,"","Бентодесма","",0]
[387,"","Макрель китайская","",0]
[388,"","","",0]
[390,"","Акула - нянька усатая","",0]
[391,"","Акула австралийская головастая","",0]
[392,"","Макрель продольно-полосатая","",0]
[394,"","Макрель малагасийская","",0]
[396,"","Макрель квинслендская","",0]
[399,"","Акрофизетр","",0]
[406,"","Кит южный гладкий-альбинос","",0]
[407,"","Махсир темный","",0]
[408,"","Махсир золотой","",0]
[409,"","Усач - гаечный ключ","",0]
[412,"","Змееголов императорский","",0]
[413,"","Богаскайа","",0]
[414,"","Гурами гигантский-альбинос","",0]
[415,"","Змееголов Золотая кобра","",0]
[417,"","Крайт морской","",0]
[420,"","Полосатик Райса","",0]
[421,"","Ехидна сулавесийская","",0]
[422,"","Морская змея Хардвика","",0]
[423,"","Ехидна белолобая","",0]
[424,"","Вундерпус","",0]
[425,"","Прометеева рыба","",0]
[436,"","Махсир красный","",0]
[437,"","Тунец длиннохвостый","",0]
[438,"","Тунец синеперый","",0]
[440,"","Тунец Большеглазый","",0]
[449,"","","",0]
[452,"","Марлин индо-тихоокеанский","",0]
[456,"","Акула кубинская ночная","",0]
[457,"","Акула святого Иосифа","",0]
[467,"","Акула вислоносая","",0]
[468,"","Акула щелеглазая","",0]
[469,"","Барракуда Хеллера","",0]
[470,"","Акула лимонная","",0]
[471,"","Акула головастая надувающаяся","",0]
[483,"","Солидус","",0]
[492,"","Цихлида тупорылая","",0]
[493,"","Шпрот таганьикский","",0]
[495,"","Нодулария боеми","",0]
[496,"","Сом танганьикский","",0]
[497,"","Аспатария марнои","",0]
[498,"","Эферия эллиптическая","",0]
[499,"","Камерония Бургинья","",0]
[500,"","Шамбардия Валберга","",0]
[501,"","Группер желто-синий","",0]
[503,"","Угорь собачий","",0]
[506,"","Тифобия","",0]
[509,"","Сом ширентис","",0]
[511,"","Цихлида-дельфин","",0]
[512,"","Буртония Фоаи","",0]
[517,"","Мена пятнистая","",0]
[518,"","Мурена перечная","",0]
[520,"","Крылатка-зебра","",0]
[521,"","Неалот","",0]
[522,"","","",0]
[523,"","Тигровая рыба обыкновенная","",0]
[524,"","Свистулька голубопятнистая","",0]
[526,"","Акула свиноглазая","",0]
[530,"","Фахака","",0]
[534,"","Мелания песчаная","",0]
[536,"","Китовая акула - альбинос","",0]
[537,"","Лабидохромис Хонги","",0]
[541,"","Принцесса Бурунди","",0]
[543,"","Фея перламутровая","",0]
[544,"","Псевдотрофеус Демасони","",0]
[546,"","Королева Танганьики","",0]
[549,"","Кит Бискайский","",0]
[550,"","Сферомия пятнистая","",0]
[551,"","Аулонокара Ньяса","",0]
[553,"","Королева Ньяса","",0]
[556,"","Группер индоокеанский малоглазый","",0]
[557,"","Акула гладкозубая","",0]
[558,"","Скат-орляк изысканный","",0]
[559,"","Акула-нянька короткохвостая","",0]
[560,"","Мурена европейская","",0]
[561,"","Минога каспийская","",0]
[562,"","Подкаменщик пестроногий","",0]
[563,"","Дораб","",0]
[564,"","Мобула японская","",0]
[565,"","Ремнезуб Блэнвиля","",0]
[566,"","Скат пятнистый","",0]
[567,"","Скат-орляк белоточечный","",0]
[568,"","Скар двухцветный","",0]
[569,"","Скар широколобый","",0]
[570,"","Сладкогуб гигантский","",0]
[571,"","Элагат","",0]
[572,"","","",0]
[573,"","Спинорог позолоченый","",0]
[574,"","Хвостокол широкохвостый","",0]
[575,"","Скат Аддисона","",0]
[577,"","Акула надувающаяся","",0]
[578,"","Гаррупа-мармита","",0]
[579,"","Мероу красный","",0]
[580,"","Амфитретус пелагический","",0]
[583,"","Гримпотевтис тихоокеанский","",0]
[584,"","Кардинал","",0]
[588,"","Акула - пилохвост","",0]
[591,"","Трахинот Кеннеди","",0]
[592,"","Трахинот круглый","",0]
[593,"","Макрель западноатлантическая","",0]
[596,"","Акула мадагаскарская","",0]
[601,"","Спинорог голубой","",0]
[603,"","Акула пелагическая лисья","",0]
[604,"","Акула пилозубая","",0]
[606,"","Протоптер бурый","",0]
[607,"","Протоптер малый","",0]
[608,"","Удильщик Коммерсона","",0]
[609,"","Лягушка роющая","",0]
[618,"","Вариола белокаемчатая","",0]
[620,"","Мурена желторотая","",0]
[621,"","Носорог однорогий","",0]
[623,"","Мурена ленточная","",0]
[624,"","Носорог безрогий","",0]
[625,"","Бротула многоусая","",0]
[627,"","Краб монтивагус","",0]
[630,"","Краб малавийский голубой","",0]
[631,"","Акула темная","",0]
[632,"","Алект вымпельный","",0]
[634,"","Акула большеносая","",0]
[640,"","Форель мраморная","",0]
[641,"","Морская собачка","",0]
[647,"","Рак сигнальный","",0]
[648,"","Шемая черноморская","",0]
[653,"","Гребешок многообразный","",0]
[658,"","Тонна гигантская","",0]
[659,"","Кашалот карликовый","",0]
[670,"","Поллак","",0]
[673,"","Краб съедобный","",0]
[678,"","Терпуг одноперый","",0]
[689,"","Карп индийский","",0]
[701,"","Камнеточец","",0]
[702,"","Букцинум","",0]
[708,"","Флейторыл","",0]
[713,"","Буффало черный","",0]
[722,"","Окунь-пират","",0]
[734,"","Ореховидка тонкая","",0]
[736,"","Голец якутский","",0]
[744,"","Лунник","",0]
[748,"","Императорский ангел","",0]
[750,"","Каракатица лечебная","",0]
[754,"","Акула-бык","",0]
[755,"","Краб травяной","",0]
[757,"","Акула Сейла","",0]
[763,"","Бычок-цуцик","",0]
[768,"","Каури-монета","",0]
[778,"","Ангел лирохвостый","",0]
[781,"","Идол мавританский","",0]
[787,"","Акула темноперая","",0]
[795,"","Губан носатый","",0]
[796,"","Путассу северная","",0]
[801,"","Солнечник обыкновенный","",0]
[818,"","Спинорог точечный","",0]
[835,"","Елец-андруга","",0]
[836,"","Быстрянка","",0]
[840,"","Форель тигровая","",0]
[842,"","Гольян Чекановского","",0]
[845,"","Краб красный мангровый","",0]
[846,"","Тонна ленточная","",0]
[857,"","Топь","",0]
[859,"","Змееголов","",0]
[864,"","Нерпа байкальская","",0]
[886,"","Хризиптера сине-желтая","",0]
[887,"","Акула галапагосская","",0]
[896,"","Пирапутанга","",0]
[901,"","Ряпушка сибирская","",0]
[903,"","Черт лабынкырский","",0]
[905,"","Уклейка","",0]
[906,"","Кэтфиш","",0]
[907,"","Лосось каспийский","",0]
[909,"","Кутум","",0]
[911,"","Тугун","",0]
[912,"","Орфа","",0]
[915,"","Рыба-бабочка сомалийская","",0]
[917,"","Вариола радужная","",0]
[921,"","Мазутный двухголов","",0]
[923,"","Рыба-белка","",0]
[924,"","Чилим","",0]
[931,"","Линь золотистый","",0]
[938,"","Хвостокол Мацубары","",0]
[942,"","Камбала двухлинейная","",0]
[946,"","Черепаха болотная","",0]
[947,"","Мускулус","",0]
[950,"","Осетр амурский","",0]
[953,"","Даватчан","",0]
[954,"","Длиннорылый полурыл","",0]
[955,"","Арапаима","",0]
[963,"","Акула ночная","",0]
[965,"","Калуга","",0]
[967,"","Малакост черный","",0]
[969,"","Карась мухтельский","",0]
[970,"","Мальма южная","",0]
[971,"","Австралийский шишечник","",0]
[975,"","Осетр сахалинский","",0]
[976,"","Краб пятиугольный волосатый","",0]
[977,"","Краб-стригун","",0]
[978,"","Петушок","",0]
[979,"","Мерценария стимпсона","",0]
[980,"","Кальмар командорский","",0]
[981,"","Кальмар тихоокеанский","",0]
[982,"","Краб мохнаторукий японский","",0]
[983,"","Краб-стригун японский","",0]
[986,"","Крокодил Джонстона","",0]
[987,"","Лещ черный южный","",0]
[988,"","Окунь золотой","",0]
[990,"","Мелкозубый пилорыл","",0]
[991,"","Энгидрина носатая","",0]
[992,"","Комета, Каллоплезиопс","",0]
[993,"","Бородавчатка","",0]
[994,"","Брызгун крупнопятнистый","",0]
[995,"","Барамунди","",0]
[996,"","Саратога","",0]
[997,"","Гребешок лунный","",0]
[998,"","Двухцветная пеламида","",0]
[999,"","Стромбус волнистый","",0]
[1000,"","Ворчун крапчатый","",0]
[1001,"","Макома широкая","",0]
[1002,"","Рак пятнистый","",0]
[1003,"","Головастик гигантский","",0]
[1005,"","Рапана жилковатая","",0]
[1006,"","Прудовик","",0]
[1007,"","Зубатка дальневосточная","",0]
[1008,"","Судак глубинный","",0]
[1010,"","Луфарь","",0]
[1011,"","Целакант коморский","",0]
[1012,"","Улитка","",0]
[1015,"","Кумжа черноморская","",0]
[1017,"","Ряпушка переславская","",0]
[1018,"","Минога украинская","",0]
[1019,"","Мактра сахалинская","",0]
[1020,"","Гребешок бело-розовый","",0]
[1021,"","Серрипес замечательный","",0]
[1023,"","Мактра китайская","",0]
[1024,"","Каллитака Адамса","",0]
[1025,"","Перонидия жилковатая","",0]
[1026,"","Гребешок свифта","",0]
[1027,"","Кардиум реснитчатый","",0]
[1029,"","Сиг хадары","",0]
[1031,"","Макрурус малоглазый","",0]
[1032,"","Микижа шантарская","",0]
[1033,"","Морской монах","",0]
[1037,"","Морской финик","",0]
[1039,"","Гринда короткоплавниковая","",0]
[1040,"","Черепаха саванная","",0]
[1045,"","Чилийская пеламида","",0]
[1050,"","Звезда-подушка","",0]
[1054,"","Кальмар обыкновенный","",0]
[1057,"","Шортбилл","",0]
[1058,"","Осьминог синекольчатый","",0]
[1064,"","Группер Квинслендский","",0]
[1069,"","Рыба-лягушка","",0]
[1070,"","Лиманда сахалинская","",0]
[1071,"","Акула песчаная","",0]
[1073,"","Мактромерис изменчивый","",0]
[1074,"","Промикропс","",0]
[1076,"","Лиманда длиннорылая","",0]
[1077,"","Губан гребенчатый","",0]
[1078,"","Скат лучевой","",0]
[1079,"","Бельдюга восточная","",0]
[1081,"","Птеригоплихт парчовый","",0]
[1083,"","Апистограмма факельная","",0]
[1084,"","Краб колючий","",0]
[1086,"","Абрамитес мраморный","",0]
[1089,"","Гонатус","",0]
[1090,"","Оникия","",0]
[1091,"","Камбала полосатая","",0]
[1100,"","Акула японская бычья","",0]
[1101,"","Скалозуб бурый","",0]
[1106,"","Гребешок исландский","",0]
[1107,"","Акула индонезийская","",0]
[1109,"","Красный конгрио","",0]
[1114,"","Австралийский колючепёр","",0]
[1115,"","Палтус белокорый","",0]
[1122,"","Рак длиннопалый","",0]
[1123,"","Кои Кохаку","",0]
[1124,"","Кои Оренжи Огон","",0]
[1125,"","Палтус стрелозубый","",0]
[1126,"","Перуанская макрель","",0]
[1127,"","Кашалот-альбинос","",0]
[1132,"","Багре негро","",0]
[1133,"","Скат-орляк австралийский","",0]
[1135,"","Краб камчатский","",0]
[1136,"","Угорь электрический","",0]
[1139,"","Дискус зеленый","",0]
[1143,"","Южная путассу","",0]
[56,"","Тауматихт Акселя","",1]
[69,"","Голец дальнеозерский","",1]
[80,"","Конус березовый","",1]
[96,"","Тигровая рыба нильская","",1]
[101,"","Луциан - Бохар","",1]
[108,"","Скат-торпедо электрический","",1]
[112,"","Горгасия красноморская","",1]
[117,"","Группер белоокаймленный","",1]
[145,"","Убанги","",1]
[149,"","Группер таувина","",1]
[168,"","Метиннис пятнистый","",1]
[182,"","Тукунаре","",1]
[189,"","Тегу","",1]
[213,"","Спинорог Краснозубый","",1]
[235,"","Камбала кесслера","",1]
[258,"","Голец белый","",1]
[270,"","Акула большеротая","",1]
[277,"","Гигантская тридакна","",1]
[278,"","Губан пятнистый","",1]
[290,"","Волютопсиус каштановый","",1]
[292,"","Морская свинья тихоокеанская","",1]
[306,"","Осетр тупорылый","",1]
[310,"","Луварь","",1]
[311,"","Кокани","",1]
[337,"","Акула мадагаскарская острозубая","",1]
[359,"","Кабра-мора","",1]
[381,"","Акула острозубая песчаная","",1]
[385,"","Хвостокол американский","",1]
[393,"","Макрель широкополосая","",1]
[418,"","Ехидна одноцветная","",1]
[448,"","Бомбиль индоокеанский","",1]
[453,"","Миксина шестижаберная","",1]
[465,"","Аравана азиатская","",1]
[481,"","Мормир бутылконосый","",1]
[484,"","Коелатура мозамбикская","",1]
[505,"","Кудрепер Форстера","",1]
[507,"","Стигматохромис вуди","",1]
[508,"","Трофеус звездчатый","",1]
[510,"","Сомик - кукушка","",1]
[513,"","Аспатария пифлоидная","",1]
[515,"","Мутела","",1]
[527,"","Сом жирафовый","",1]
[529,"","Протоптер мраморный","",1]
[531,"","Лягушка нильская","",1]
[538,"","Офтальмотиляпия носатая","",1]
[548,"","Аулонокара Бенша","",1]
[552,"","Клоун танганьикский","",1]
[554,"","Бычок краснозубый","",1]
[597,"","Акула - небрия","",1]
[598,"","Плоскоголов бахромчатый","",1]
[602,"","Хирург белогрудый","",1]
[629,"","Крокодил узкорылый","",1]
[633,"","Краб танганьикский","",1]
[663,"","Форель золотая","",1]
[672,"","Фикус изящный","",1]
[676,"","Сердцевидка съедобная","",1]
[685,"","Сарган","",1]
[699,"","Терпуг зайцеголовый","",1]
[719,"","Каранкс синеплавниковый","",1]
[739,"","Карп гигантский","",1]
[752,"","Амур черный","",1]
[772,"","Акула мелкозубая","",1]
[802,"","Байкальский осетр","",1]
[820,"","Рыба-бекас","",1]
[828,"","Лягушка озерная","",1]
[830,"","Дорадо золотой","",1]
[847,"","Дрейссена речная","",1]
[854,"","Змеиная макрель","",1]
[860,"","Рак речной","",1]
[867,"","Омуль чивыркуйский","",1]
[881,"","Карась морской","",1]
[882,"","Голавль","",1]
[889,"","Палия","",1]
[898,"","Шемая","",1]
[899,"","Востробрюшка уссурийская","",1]
[914,"","Черепаха кожистая","",1]
[920,"","Альбула","",1]
[926,"","Хирург зебровый","",1]
[933,"","Дасцилл зебровидный","",1]
[951,"","Тракакса","",1]
[962,"","Сомик черный","",1]
[968,"","Галаксия тасманская","",1]
[972,"","Акула черноперая","",1]
[974,"","Австралийский анчоус","",1]
[985,"","Мангровый джек","",1]
[1009,"","Палия кряжевая","",1]
[1013,"","Сиг-востряк","",1]
[1014,"","Минога тихоокеанская","",1]
[1022,"","Глицимерис приморский","",1]
[1030,"","Акула лососевая","",1]
[1034,"","Угольная рыба","",1]
[1035,"","Узо-угай","",1]
[1036,"","Акула зебровая","",1]
[1046,"","Лемонема","",1]
[1056,"","Мако длинноплавниковый","",1]
[1060,"","Нанностом Бекфорда","",1]
[1062,"","Голец-усач сибирский","",1]
[1063,"","Осетр сибирский","",1]
[1066,"","Пузанок","",1]
[1080,"","Багре гури","",1]
[1087,"","Каллиста короткосифонная","",1]
[1092,"","Хапаку","",1]
[1095,"","Аррип Большой","",1]
[1097,"","Кои Сёва","",1]
[1098,"","Акула азиатская кунья","",1]
[1099,"","Желтохвост","",1]
[1110,"","Шабути","",1]
[1112,"","Миксина атлантическая","",1]
[1116,"","Ламна или Акула сельдевая атлантическая","",1]
[1121,"","Химера европейская","",1]
[1130,"","Кайман крокодиловый","",1]
[1131,"","Пузанок дунайский","",1]
[1134,"","Гребешок раскрашенный","",1]
[1141,"","Кайман черный","",1]
[1147,"","Лоцман","",1]
[1149,"","Владиславия","",1]
[83,"","Крокодил нильский","",2]
[100,"","Карась-барабан","",2]
[191,"","Пиранья краснобрюхая","",2]
[230,"","Помакант рябой","",2]
[280,"","Единорог расписной","",2]
[283,"","Ликодонт яванский","",2]
[296,"","Зубатка полосатая","",2]
[297,"","Зубатка синяя","",2]
[309,"","Бисса","",2]
[323,"","Акула серая короткоперая","",2]
[326,"","Нотопогон","",2]
[366,"","Скватина американская","",2]
[370,"","Звездочет крапчатый","",2]
[371,"","Гуативера","",2]
[379,"","Грамма королевская","",2]
[395,"","Макрель австралийская","",2]
[441,"","Угорь крапчатый","",2]
[446,"","Спинорог масочный","",2]
[450,"","Акула рифовая белая","",2]
[451,"","Гимнура Натальская","",2]
[454,"","Группер мраморный","",2]
[482,"","Нимбохромис полистигма","",2]
[485,"","Аухеногланис","",2]
[489,"","Тиляпия мозамбикская","",2]
[519,"","Бородавчатка красноморская","",2]
[528,"","Карп африканский","",2]
[542,"","Летрин длиннорылый","",2]
[586,"","Снэппер низкотелый","",2]
[612,"","Акула шелковая","",2]
[619,"","Группер шестиполосый","",2]
[622,"","Платакс - нетопырь","",2]
[626,"","Многопёр Эндлихера","",2]
[635,"","Спинорог голубоперый","",2]
[636,"","Тартаруга","",2]
[650,"","Голец усатый","",2]
[666,"","Архитеутис","",2]
[679,"","Глосса","",2]
[681,"","Трахира Хоплиас, Малабарский хоплиас","",2]
[705,"","Акула длиннокрылая","",2]
[712,"","Рыба-лира","",2]
[720,"","Акула кошачья","",2]
[721,"","Сомик оливковый","",2]
[724,"","Кефаль алмазная","",2]
[725,"","Гребешок приморский","",2]
[729,"","Макруронус новозеландский","",2]
[732,"","Пятнистый воббегонг","",2]
[733,"","Усач днепровский","",2]
[743,"","Сельдь черноморская","",2]
[753,"","Краб четырехугольный волосатый","",2]
[756,"","Вампир адский","",2]
[776,"","Лосось Кларка","",2]
[853,"","Белуга черноморская","",2]
[890,"","Осетр якутский","",2]
[922,"","Группер стройный","",2]
[932,"","Сладкогуб пятнистый","",2]
[939,"","Кит серый","",2]
[943,"","Шпрот европейский","",2]
[957,"","Акула белоглазая","",2]
[959,"","Луциан синеполосый","",2]
[960,"","Мойва","",2]
[966,"","Омуль пенжинский","",2]
[1028,"","Морской ворон","",2]
[1048,"","Тунец полосатый","",2]
[1049,"","Патагонский клыкач","",2]
[1061,"","Группер странствующий","",2]
[1094,"","Перуанский ансчоус","",2]
[1140,"","Палтус синекорый","",2]
[1142,"","Подуст","",2]
[1145,"","Пескарь ленский","",2]
[13,"","Корюшка  озерная малоротая","",21]
[14,"","Нерка карликовая","",22]
[15,"","Хариус Камчатский","",7]
[39,"","Кит японский","",11]
[86,"","Вунду","",18]
[90,"","Башир","",25]
[91,"","Ящероголов красный","",5]
[92,"","Собачка речная","",9]
[94,"","Шильб полосатый","",33]
[95,"","Нильский окунь","",7]
[97,"","Баяд","",15]
[98,"","Сом электрический","",11]
[104,"","Тунец индо-тихоокеанский","",5]
[105,"","Мурена гигантская","",3]
[119,"","Тиляпия галилейская","",6]
[140,"","Поллимир Исидора","",8]
[141,"","Тиляпия Зилля","",20]
[142,"","Каранг золотой","",19]
[144,"","Алеста","",9]
[146,"","Тиляпия нильская","",12]
[147,"","Цитарина обыкновенная","",15]
[148,"","Хемихромис-красавец","",24]
[154,"","Мурджан","",6]
[155,"","Тунец скумбриевидный","",3]
[206,"","Аротрон колючий","",8]
[210,"","Спинорог оранжевополосый","",10]
[215,"","Лямбис подагрический","",3]
[217,"","Ябби","",4]
[219,"","Кузовок-кубик","",9]
[220,"","Пеламида атлантическая","",5]
[222,"","Морской черт или удильщик европейский","",3]
[225,"","Итальянский усач","",8]
[227,"","Тунец малый","",24]
[237,"","Долгопер средиземноморский","",4]
[252,"","Скат круглый","",3]
[279,"","Шашень","",23]
[295,"","Лиманда желтохвостая","",7]
[298,"","Каллихт","",25]
[308,"","Японская макрель","",3]
[314,"","Рыба-еж длинношипая","",3]
[317,"","Перуанская сардина","",4]
[322,"","Алаша","",4]
[324,"","Антиас обыкновенный","",14]
[325,"","Анчоус Харденберга","",10]
[343,"","Акула семижаберная","",4]
[344,"","Барракуда желтохвостая","",9]
[348,"","Сельдь - круглобрюшка","",14]
[350,"","Парапагурус","",4]
[351,"","Акула арабская","",13]
[352,"","Барракуда красная","",4]
[353,"","Мобула серповидная","",21]
[354,"","Мобула короткоперая","",7]
[358,"","Акулка карликовая","",5]
[362,"","Этмоптерус Шульца","",3]
[363,"","Цапатеро-чакета","",3]
[365,"","Амфихт","",8]
[367,"","Цапатеро","",23]
[369,"","Гуачанчо","",5]
[372,"","Акула флоридская","",5]
[373,"","Кабрилья","",13]
[375,"","Марлин атлантический","",8]
[376,"","Этмоптерус серый","",6]
[377,"","Кобия","",7]
[378,"","Акула Оустона","",3]
[380,"","Акула американская кунья","",3]
[386,"","Хвостокол бахромчатый","",9]
[389,"","Макрель испанская","",5]
[397,"","Кохола Сперм","",27]
[398,"","Даскиллус гавайский","",34]
[400,"","","",19]
[401,"","Камбала павлинья","",28]
[402,"","Рыба-ангел японская","",8]
[403,"","Тремоктопус","",14]
[404,"","Кохола Полу","",20]
[405,"","Кохола Пигми","",32]
[410,"","Рак пурпурный","",5]
[411,"","Акулка Аполлона","",14]
[416,"","Наутилус обыкновенный","",30]
[419,"","Конгер песчаный решетчатый","",4]
[426,"","Черепахоголов Стейнеджера","",3]
[427,"","Ехидна полосатая","",18]
[428,"","Конгер большеглазый","",8]
[429,"","Морская змея гладкая","",31]
[430,"","Ехидна гвинейская","",19]
[431,"","Ластохвост спиральный","",20]
[432,"","Рыба-прилипало","",7]
[433,"","Гребешок коричневый","",26]
[434,"","Морская змея Белчера","",16]
[435,"","Неалот тихоокеанский","",20]
[439,"","Спинорог синегорлый","",4]
[442,"","Лангуст полифагус","",3]
[443,"","Омар капский","",5]
[444,"","Флейторыл китайский","",4]
[445,"","Химера длинноносая","",10]
[447,"","Барракуда остроперая","",4]
[455,"","Группер шоколадный","",30]
[458,"","Сом Хасселя","",19]
[459,"","Лягушка суматранская","",19]
[460,"","Гурами Вайланта","",32]
[461,"","Расбора двухточечная","",3]
[462,"","Змееголов малабарский","",15]
[463,"","Змееголов радужный","",17]
[464,"","Махсир малайский","",12]
[466,"","Усач тигровый шестиполосый","",5]
[472,"","Вьюн муреновидный","",26]
[473,"","Макрогнатус пятнистый","",18]
[474,"","Краб-вампир яванский","",13]
[475,"","Сарган пресноводный","",24]
[476,"","Гипоплектрус","",3]
[477,"","Тигровая рыба танзанийская","",3]
[478,"","Окунь вилохвостый","",4]
[479,"","Золотой леопард","",3]
[480,"","Мбенга","",5]
[486,"","Сом мраморный","",34]
[487,"","Окунь танганьикский","",19]
[488,"","Окунь большеглазый","",8]
[490,"","Гетеротис","",3]
[491,"","Мбамба","",6]
[494,"","Цихлида гигантская","",14]
[502,"","Сиган струйчатый","",3]
[504,"","Крылатка антенновая","",3]
[514,"","Цихлида Ливингстона","",14]
[516,"","Тиляпия красногрудая","",8]
[525,"","Скорпенопсис дьявольский","",22]
[532,"","Полиптер","",4]
[533,"","Семутунду","",4]
[535,"","Мормиропс угревидный","",4]
[539,"","Лабеотрофеус обыкновенный","",26]
[540,"","Лабидохромис большой","",5]
[545,"","Сардина танганьикская","",8]
[547,"","Аристохромис Кpucmu","",3]
[555,"","Кальвус","",3]
[576,"","Корифена малая","",4]
[581,"","Этелис королевский","",6]
[582,"","Копьеносец малый","",3]
[585,"","Черна бурополосая","",9]
[587,"","Макрель бразильская","",30]
[589,"","Снэппер нитеперый","",25]
[590,"","Макрель-Кавалла","",11]
[594,"","Трахинот большой","",5]
[595,"","Сарган крокодиловый","",27]
[599,"","Группер крупнопятнистый","",23]
[600,"","Сердеронг чернопятнистый","",15]
[605,"","","",30]
[610,"","Ореохромис Каронга","",6]
[611,"","Барракуда тупорылая","",14]
[613,"","Сом малавийский","",18]
[614,"","Группер буропятнистый","",12]
[615,"","Дистиходус шестиполосый","",3]
[616,"","Каранкс черный","",7]
[617,"","Мурена - зебра","",8]
[628,"","Кампанго","",11]
[637,"","Кашорро краснохвостый","",7]
[638,"","Угорь речной американский","",11]
[639,"","Тунец желтопёрый","",15]
[642,"","Лосось атлантический","",6]
[643,"","Осетр русский","",19]
[644,"","Минога огайская","",15]
[645,"","Сомик канальный","",7]
[646,"","Сомик желтый","",4]
[649,"","Минога морская","",3]
[651,"","Осетр атлантический","",28]
[652,"","Краб пресноводный","",6]
[654,"","Бутылконос северный","",16]
[655,"","Косатка","",33]
[656,"","Хариус восточносибирский","",12]
[657,"","Корюшка","",24]
[660,"","Щука травяная","",8]
[661,"","Скат колючий","",29]
[662,"","Щука красноперая","",15]
[664,"","Сардина европейская","",14]
[665,"","Кефаль-губач","",5]
[667,"","Тригла желтая","",16]
[668,"","Краппи белый","",7]
[669,"","Бычок-кругляк","",28]
[671,"","Линь","",15]
[674,"","Ротан","",33]
[675,"","Тюрбо","",8]
[677,"","Ершоватка","",13]
[680,"","Патагонский лобстер","",3]
[682,"","Толстолобик белый","",21]
[683,"","Севрюга","",4]
[684,"","Сом","",35]
[686,"","Группер картофельный","",26]
[687,"","Марлин голубой","",13]
[688,"","Группер томатный","",10]
[690,"","Мригал","",23]
[691,"","Тунец голубой","",14]
[692,"","Солнечник синежаберный","",12]
[693,"","Окунь алеутский","",8]
[694,"","Окунь северный морской","",23]
[695,"","Вырезуб","",5]
[696,"","Клювач северный","",13]
[697,"","Марлин полосатый","",4]
[698,"","Луциан темно-бурый","",18]
[700,"","Каранкс большой","",4]
[703,"","Рыба-луна","",23]
[704,"","Золотистая скорпена","",4]
[706,"","Осетр персидский","",8]
[707,"","Менёк","",5]
[709,"","Перуанская сериолелла","",13]
[710,"","Конголли","",5]
[711,"","Полосатик карликовый","",4]
[714,"","Акула-молот обыкновенная","",3]
[715,"","Инанга","",8]
[716,"","Камбала зеленая","",3]
[717,"","Манта","",12]
[718,"","Ледяная рыба","",13]
[723,"","Акула белоперая","",5]
[726,"","Сериола большая","",6]
[727,"","Группер леопардовый","",9]
[728,"","Анчоус японский","",5]
[730,"","Новозеландская мерлуза","",14]
[731,"","Акула пепельная","",4]
[735,"","Скат полярный","",13]
[737,"","Скат короткохвостый","",3]
[738,"","Тасманский рак","",7]
[740,"","Скат Монтегю","",3]
[741,"","Губан радужный","",4]
[742,"","Треска восточная","",12]
[745,"","Минтай","",19]
[746,"","Пятнистая озерная лягушка","",3]
[747,"","Галаксия пятнистая","",4]
[749,"","Группер корраловый красный","",3]
[751,"","Акула звездчатошипая","",4]
[758,"","Горбуша южноамериканская","",10]
[759,"","Микижа чилийская","",6]
[760,"","Щука амурская","",18]
[761,"","Троегуб","",4]
[762,"","Рипус","",25]
[764,"","Скат Йенсена","",3]
[765,"","Ерш-носарь","",11]
[766,"","Каракатица расписная","",3]
[767,"","Ваху","",4]
[769,"","Спинорог расписной","",12]
[770,"","Окунь морской норвежский","",32]
[771,"","Зубарик обыкновенный","",14]
[773,"","Катран","",23]
[774,"","Лаврак белый","",26]
[775,"","Таймень","",33]
[777,"","Нельма","",23]
[779,"","Спинорог заплаточный","",3]
[780,"","Клюворыл","",27]
[782,"","Щука-маскинонг","",26]
[783,"","Тунец длинноперый","",16]
[784,"","Щука черная","",9]
[785,"","Сплэйк","",15]
[786,"","Скат акулий","",4]
[788,"","Луциан чернохвостый","",11]
[789,"","Покрышка старая","",34]
[790,"","Акула - собака","",19]
[791,"","Сайда","",33]
[792,"","Окунь - клювач","",6]
[793,"","Сайка","",6]
[794,"","Голец - кристивомер","",32]
[797,"","Треска атлантическая","",21]
[798,"","Рыба-наполеон","",25]
[799,"","Омуль маломорский","",3]
[800,"","Широколобка темная","",5]
[803,"","Рыбец","",3]
[804,"","Подкаменщик","",8]
[805,"","Хариус байкальский Белый","",5]
[806,"","Хариус байкальский черный","",19]
[807,"","Окунь большеротый","",20]
[808,"","Окунь ушастый","",5]
[809,"","Омуль посольский","",13]
[810,"","Сомик голубой","",5]
[811,"","Окунь  каменный","",21]
[812,"","Сомик американский","",10]
[813,"","Окунь прибрежный","",12]
[814,"","Веслонос","",6]
[815,"","Пагр красный","",5]
[816,"","Тунец южный","",4]
[817,"","Акула серо-бурая","",15]
[819,"","Нейва","",8]
[821,"","Спинорог Пикассо","",8]
[822,"","Аротрон белоточечный","",4]
[823,"","Чавыча южноамериканская","",24]
[824,"","Кумжа южноамериканская","",11]
[825,"","Карась якутский","",15]
[826,"","Кижуч южноамериканский","",6]
[827,"","Сима южноамериканская","",18]
[829,"","Щучка Хьюжета","",3]
[831,"","Берш","",29]
[832,"","Судак","",12]
[833,"","Пиранья обыкновенная","",19]
[834,"","Парусник","",5]
[837,"","Синец","",8]
[838,"","Краснопер мелкочешуйчатый","",24]
[839,"","Хариус сибирский","",14]
[841,"","Амур белый","",33]
[843,"","Жерех","",16]
[844,"","Хариус ленский","",11]
[848,"","Судак канадский","",31]
[849,"","Косатка-скрипун","",4]
[850,"","Желтощек","",8]
[851,"","Стерлядь","",10]
[852,"","Адамуссиум","",13]
[855,"","Краснопёр монгольский","",4]
[856,"","Косатка уссурийская","",14]
[858,"","Бычок-кнут","",8]
[861,"","Верхогляд","",3]
[862,"","Сом солдатова","",11]
[863,"","Белуга","",4]
[865,"","Сом Суруби","",4]
[866,"","Палтус атлантический","",22]
[868,"","Голец Таранца","",4]
[869,"","Стерлядь сибирская","",15]
[870,"","Палия южноамериканская","",13]
[871,"","Кит горбатый-альбинос","",12]
[872,"","Павлиний окунь-бабочка","",23]
[873,"","Щука глубинная","",4]
[874,"","Хирург флаговый","",4]
[875,"","Сомик леопардовый","",4]
[876,"","Моллюск","",6]
[877,"","Мольва","",22]
[878,"","Голец черского","",22]
[879,"","Палия американская","",7]
[880,"","Губан колючий","",10]
[883,"","Лещ морской кинжальный","",22]
[884,"","Чехонь","",24]
[885,"","Мальма","",21]
[888,"","Шип","",19]
[891,"","Зеленушка","",8]
[892,"","Моторо","",11]
[893,"","Форель севанская","",3]
[894,"","Акула-молот бронзовая","",10]
[895,"","Гольян озерный","",21]
[897,"","Чукучан","",3]
[900,"","Чебак","",7]
[902,"","Масляная рыба","",3]
[904,"","Даллия","",10]
[908,"","Колюшка девятииглая","",25]
[910,"","Ряпушка","",28]
[913,"","Конь пестрый","",19]
[916,"","Краб кокосовый","",15]
[918,"","Толстолобик пестрый","",3]
[919,"","Жерех - лысач","",3]
[925,"","Кальмар гигантский","",3]
[927,"","Луциан королевский","",6]
[928,"","Луциан розовый","",5]
[929,"","Барабулька","",17]
[930,"","Луциан императорский красный","",4]
[934,"","Колюшка трехиглая","",17]
[935,"","Омуль северобайкальский","",28]
[936,"","Сайра атлантическая","",4]
[937,"","Угай крупночешуйчатый","",3]
[940,"","Пинагор","",3]
[941,"","Хирург желтоплавничный","",14]
[944,"","Пагелл красный","",9]
[945,"","Тарань","",25]
[948,"","Усач обыкновенный","",16]
[949,"","Черепаха каспийская","",21]
[952,"","Сельдь каспийская","",3]
[956,"","Кои Ямабуки Огон","",4]
[958,"","Угай мелкочешуйный","",3]
[961,"","Хариус лабынкырский","",17]
[964,"","Палия лудожная","",4]
[973,"","Коаро","",3]
[984,"","Аррип малый","",4]
[989,"","Пигоплит, Королевский ангел","",9]
[1004,"","Мидия","",13]
[1016,"","Морская лисица","",3]
[1038,"","Лудога","",14]
[1041,"","Пиранья вымпельная","",3]
[1042,"","Морской орел пятнистый","",10]
[1043,"","Аравана серебристая","",31]
[1044,"","Валаамка","",7]
[1047,"","Краб королевский","",3]
[1051,"","Кит карликовый","",15]
[1052,"","Акула-лисица","",8]
[1053,"","Попока","",5]
[1055,"","Мерланг","",33]
[1059,"","Золотистая сериола","",11]
[1065,"","Корюшка зубатая азиатская","",6]
[1067,"","Рогатка","",3]
[1068,"","Марлин черный","",6]
[1072,"","Акула полярная","",5]
[1075,"","Сима","",32]
[1082,"","Скалярия Леопольда","",16]
[1085,"","Песчанка тихоокеанская","",6]
[1088,"","Камбала звездчатая","",15]
[1093,"","Устрица","",15]
[1096,"","Патагонский гребешок","",15]
[1102,"","Омуль байкальский","",8]
[1103,"","Омуль","",4]
[1104,"","Острорылый крокодил","",3]
[1105,"","Перуанская ставрида","",21]
[1108,"","Лещ восточно-сибирский","",26]
[1111,"","Берикс австралийский","",35]
[1113,"","Группер павлиний","",15]
[1117,"","Мурена ячеистая","",4]
[1118,"","Белоглазка","",12]
[1119,"","Ремнезуб Грея","",9]
[1120,"","Мандаринка","",8]
[1128,"","Дорадо","",19]
[1129,"","Финта","",19]
[1137,"","Сом-плоскоголовик","",3]
[1138,"","Терпуг Стеллера","",5]
[1144,"","Налим тонкохвостый","",14]
[1146,"","Чир","",4]
[1148,"","Пеленгас","",6]
[1150,"","Кохола Поколе","",59]
[1151,"","Пескарь","",52]
[1152,"","Налим средиземноморский","",42]
[1153,"","Меланохромис Чипока","",48]
[1154,"","Нандус борнейский","",41]
[1155,"","Форель озерная","",57]
[1156,"","Храмуля","",67]
[1157,"","Конгер мысовой","",54]
[1158,"","Ау","",63]
[1159,"","Маколор черный","",42]
[1160,"","Змееголов полосатый","",59]
[1161,"","Окунь красноглазый","",36]
[1162,"","Окунь песчаный","",40]
[1163,"","Гурами шоколадный","",44]
[1164,"","Широколобка красная","",64]
[1165,"","Камбала морская","",57]
[1166,"","Краппи черный","",64]
[1167,"","Моллинезия парусная","",37]
[1168,"","Лосось южноамериканский","",40]
[1169,"","Акула китовая","",66]
[1170,"","Гурами гигантский","",39]
[1171,"","Лещ морской обыкновенный","",69]
[1172,"","Бикуда","",40]
[1173,"","Ерш","",70]
[1174,"","Терпуг бурый","",54]
[1175,"","Томан","",39]
[1176,"","Махсир донгнайский","",38]
[1177,"","Тасманский пескарь","",58]
[1178,"","Аргонавт","",38]
[1179,"","Кабуча","",36]
[1180,"","Налим","",70]
[1181,"","Гольян Лаговского","",58]
[1182,"","Голец Леванидова","",39]
[1183,"","Волосозуб","",43]
[1184,"","Каракатица японская","",47]
[1185,"","Каранкс широкоротый","",57]
[1186,"","Скар рубиновый","",56]
[1187,"","Горбыль","",54]
[1188,"","Сапог рваный","",41]
[1189,"","Крокодил гребнистый","",49]
[1190,"","Голец длинноголовый","",47]
[1191,"","Кунджа","",56]
[1192,"","Змееголов лесной","",55]
[1193,"","Подкаменщик сибирский","",40]
[1194,"","Акула карибская длиннорылая","",43]
[1195,"","Кит горбатый","",61]
[1196,"","Лаванда Мбуна","",52]
[1197,"","Рыба-лиса","",48]
[1198,"","Керчак-яок","",36]
[1199,"","Кета","",67]
[1200,"","Окунь морской золотистый","",40]
[1201,"","Пиранья ромбовидная","",58]
[1202,"","Акула гигантская","",67]
[1203,"","Махсир оранжевоплавниковый","",36]
[1204,"","Окунь гладкий","",64]
[1205,"","Сфирена мелкочешуйная","",66]
[1206,"","Акула голубая","",52]
[1207,"","Кит синий северный","",49]
[1208,"","Угорь","",58]
[1209,"","Сейвал или кит ивасевый","",67]
[1210,"","Ауха","",67]
[1211,"","Зубатка пятнистая","",56]
[1212,"","Пикша","",58]
[1213,"","Валек","",41]
[1214,"","Цихлида - колибри","",69]
[1215,"","Ленок острорылый","",59]
[1216,"","Сом Нихофа","",72]
[1217,"","Кефаль-лобан","",71]
[1218,"","Угорь болотный азиатский","",102]
[1219,"","Себарау","",97]
[1220,"","Креветка - хоббит","",89]
[1221,"","Сом лесной","",76]
[1222,"","Козобородка полосатая","",73]
[1223,"","Змееголов коричневый","",88]
[1224,"","Конгер серебристый","",74]
[1225,"","Лещ морской белый","",83]
[1226,"","Лаврак полосатый","",87]
[1227,"","Конгер длинноперый","",76]
[1228,"","Каранкс Тилле","",78]
[1229,"","Кохола Нуи","",103]
[1230,"","Пыжьян","",83]
[1231,"","Гринда обыкновенная","",104]
[1232,"","Муксун","",98]
[1233,"","Апсил зубатый","",73]
[1234,"","Клоун мавританский","",90]
[1235,"","Навага тихоокеанская","",73]
[1236,"","Перка","",98]
[1237,"","Кайман гладколобый","",81]
[1238,"","Вьюн","",95]
[1239,"","Голец арктический","",72]
[1240,"","Хариус европейский","",75]
[1241,"","Нерка","",72]
[1242,"","Форель радужная","",90]
[1243,"","Сельдь американская","",81]
[1244,"","Мальма лабынкырская","",71]
[1245,"","Кижуч","",93]
[1246,"","Язь","",78]
[1247,"","Густера","",82]
[1248,"","Горбуша","",82]
[1249,"","Угорь короткоребристый","",84]
[1250,"","Осман голый","",81]
[1251,"","Сиг","",96]
[1252,"","Морской еж","",73]
[1253,"","Окунь малый","",81]
[1254,"","Пелядь","",82]
[1255,"","Желтокрылка","",99]
[1256,"","Вобла","",75]
[1257,"","Акула белая","",100]
[1258,"","Акула гренландская","",112]
[1259,"","Мано мано","",129]
[1260,"","Ехидна звездчатая","",108]
[1261,"","Акула серо-голубая","",125]
[1262,"","Полосатик Брайда","",106]
[1263,"","Окунь пятнистый","",111]
[1264,"","Скумбрия атлантическая","",122]
[1265,"","Форель ручьевая","",136]
[1266,"","Улуа","",116]
[1267,"","Конгер японский","",111]
[1268,"","Лаврак","",108]
[1269,"","Полосатик южный","",114]
[1270,"","Полурыл лесной","",135]
[1271,"","Калинка","",111]
[1272,"","Виттина короманделиана","",122]
[1273,"","Змееголов черный","",115]
[1274,"","Махи-махи","",118]
[1275,"","Рыба-бабочка лимонная","",151]
[1276,"","Ехидна грациозная","",147]
[1277,"","Бутылконос плоскоголовый","",167]
[1278,"","Рыба-каторжник","",158]
[1279,"","Бестер","",144]
[1280,"","Подлещик","",173]
[1281,"","Селар","",171]
[1282,"","Чавыча","",148]
[1283,"","Микижа","",153]
[1284,"","Сом амурский","",158]
[1285,"","Усач борнейский","",164]
[1286,"","Робало","",167]
[1287,"","Белуха","",158]
[1288,"","Кашалот","",143]
[1289,"","Елец сибирский","",172]
[1290,"","Карась золотой","",181]
[1291,"","Кудрепер длиннорылый","",180]
[1292,"","Кераи","",199]
[1293,"","Кохола Вилу","",187]
[1294,"","Окунь малоротый","",198]
[1295,"","Карп голый","",184]
[1296,"","Лещ","",203]
[1297,"","Махсир обыкновенный","",192]
[1298,"","Елец","",197]
[1299,"","Рыба-павлин","",190]
[1300,"","Спинорог крупнопятнистый","",228]
[1301,"","Змееголов карликовый","",236]
[1302,"","Рыба-меч","",244]
[1303,"","Группер палевый","",243]
[1304,"","Макрель голубая","",224]
[1305,"","Бабочка малавийская","",214]
[1306,"","Бонито","",248]
[1307,"","Носорог Вламинга","",265]
[1308,"","Усач жесткогубый","",262]
[1309,"","Усач Ваандерса","",272]
[1310,"","Полосатик малый","",286]
[1311,"","Акула желтая","",312]
[1312,"","Омуль селенгинский","",301]
[1313,"","Карп зеркальный","",283]
[1314,"","Окунь","",300]
[1315,"","Щучка азиатская","",299]
[1316,"","Ленок","",338]
[1317,"","Карп чешуйчатый","",336]
[1318,"","Усач краснохвостый","",352]
[1319,"","Лещ амурский черный","",352]
[1320,"","Макрогнатус зебровый","",376]
[1321,"","Голомянка","",365]
[1322,"","Барабулька мелкозубая","",370]
[1323,"","Сиган яванский","",362]
[1324,"","Щука обыкновенная","",367]
[1325,"","Красноперка","",419]
[1326,"","Вьюн серополосый","",405]
[1327,"","Усач Бэнкси","",414]
[1328,"","Ножезуб полосатый","",417]
[1329,"","Снэк","",401]
[1330,"","Карась серебряный","",406]
[1331,"","Расбора обыкновенная","",520]
[1332,"","Кавалла островная","",495]
[1333,"","Акула суповая","",552]
[1334,"","Акула-молот гигантская","",550]
[1335,"","Сазан","",536]
[1336,"","Анабас","",588]
[1337,"","Сиг амурский","",628]
[1338,"","Акула тигровая","",669]
[1339,"","Рувета","",669]
[1340,"","Луциан зеленый","",645]
[1341,"","Акула шестижаберная","",656]
[1342,"","Змееголов пятнистый","",718]
[1343,"","Каранкс желтоперый","",741]
[1344,"","Скат гитарный","",931]
[1345,"","Пагр австралийский","",1195]
[1346,"","Барракуда большая","",1319]
[1347,"","Плотва","",1313]
[1348,"","Сом лягушковый","",1468]
[1349,"","Змееголов глазчатый","",1514]
[1350,"","Флагохвост гавайский","",1642]
[1351,"","Сардинелла желтополосая","",1624]
[1352,"","Луциан кашмирский","",1646]
[1353,"","Финвал","",7011]

{"sheet":"Выгрузка","index":2,"n_rows":1454,"n_cols":5,"rows_kept":1454,"cut":false,"hidden":true,"merged":[]}
["Серверы"]
["Вход или регистрация"]
["Войти Регистрация Забыли пароль? Не пришел пароль?"]
["Загрузить"]
["Загрузить игру"]
["Обои на рабочий стол"]
["Новости"]
["Турниры"]
["Регулярные турниры"]
["Big Game Fishing"]
["Рейтинги"]
["Рейтинги игроков"]
["Таблица рекордов"]
["Командный турнирный рейтинг"]
["Командный дуэльный рейтинг"]
["Справочник"]
["Статистика сервера"]
["Цены на рыбу"]
["Список рыбы"]
["Список предметов"]
["Список водоемов"]
["Вопросы и ответы"]
["Мобильная версия"]
["Загрузить игру МРР"]
["Помощь и советы МРР"]
["Таблица рекордов МРР"]
["Цены на рыбу МРР"]
["Карта сервера МРР"]
["Расписание турниров МРР"]
["Рейтинги игроков МРР"]
["Рейтинг команд МРР"]
["Разработка"]
["Сообщество"]
["Форум"]
["Социальные сети"]
["Главная »"]
["Цены на рыбу"]
[]
["Цены на рыбу"]
[]
["Стоимость рыбы меняется каждые 5 реальных часов. Чем больше продают данную рыбу, тем меньше она стоит."]
[]
["Ниже представлен спрос на рыбу в порядке убывания."]
["Последнее изменение цен было в 10:43 МСК."]
["Место:","Рыба:",null,"Прогресс:","Продано (шт):"]
[1,null,"Калкан черноморский",null,0]
[2,null,"Камбала двухцветная",null,0]
[3,null,"Акула скульптурная",null,0]
[4,null,"Акула шершавая",null,0]
[5,null,"Лихия",null,0]
[6,null,"Палтус американский",null,0]
[7,null,"Австралийский пилонос",null,0]
[8,null,"Маллисквама",null,0]
[9,null,"Минога сибирская",null,0]
[10,null,"Акула сигарная",null,0]
[11,null,"Осетр тихоокеанский",null,0]
[12,null,"Форель остроголовая",null,0]
[13,null,"Корюшка озерная малоротая",null,21]
[14,null,"Нерка карликовая",null,22]
[15,null,"Хариус Камчатский",null,7]
[16,null,"Акула светлохвостая",null,0]
[17,null,"Акула - свинья",null,0]
[18,null,"Акула губастая",null,0]
[19,null,"Акула острозубая",null,0]
[20,null,"Пилонос японский",null,0]
[21,null,"Осетр адриатический",null,0]
[22,null,"Антимора клюворылая",null,0]
[23,null,"Афалина",null,0]
[24,null,"Ремнезуб командорский",null,0]
[25,null,"Косатка малая",null,0]
[26,null,"Рыба луна короткая",null,0]
[27,null,"Косаткодельфин",null,0]
[28,null,"Манта рифовая",null,0]
[29,null,"Рыба-луна овальная",null,0]
[30,null,"Группер Малабарский",null,0]
[31,null,"Форель Дональдсона",null,0]
[32,null,"Хвостокол кольчатый",null,0]
[33,null,"Плиотрема",null,0]
[34,null,"Сарпа",null,0]
[35,null,"Центрина Австралийская",null,0]
[36,null,"Осьминог Думбо",null,0]
[37,null,"Кит синий альбинос",null,0]
[38,null,"Семга Камчатская",null,0]
[39,null,"Кит японский",null,11]
[40,null,"Кижуч озерный",null,0]
[41,null,"Лазианциструс",null,0]
[42,null,"Носорог пятнистый",null,0]
[43,null,"Губка-лира",null,0]
[44,null,"Матамата",null,0]
[45,null,"Пирарара",null,0]
[46,null,"Акула плащеносная",null,0]
[47,null,"Жемчужная рыба",null,0]
[48,null,"Скат акулохвостый",null,0]
[49,null,"Пайара",null,0]
[50,null,"Форель апачей",null,0]
[51,null,"Алепизавр",null,0]
[52,null,"Черный нож",null,0]
[53,null,"Скат гладкий",null,0]
[54,null,"Кракен",null,0]
[55,null,"Пиранья крапчатая",null,0]
[56,null,"Тауматихт Акселя",null,1]
[57,null,"Клюворыл Шепарда",null,0]
[58,null,"Акула Мицукури",null,0]
[59,null,"Ремнезуб перуанский",null,0]
[60,null,"Рыба-сабля",null,0]
[61,null,"Акула эполетовая",null,0]
[62,null,"Мешкорот",null,0]
[63,null,"Катран вануатский",null,0]
[64,null,"Багре хигучи",null,0]
[65,null,"Хирург-Ахиллес",null,0]
[66,null,"Голец носатый",null,0]
[67,null,"Голец узонский",null,0]
[68,null,"Мегалодон",null,0]
[69,null,"Голец дальнеозерский",null,1]
[70,null,"Рыба-ремень, сельдяной король",null,0]
[71,null,"Кайман широкомордый",null,0]
[72,null,"Кои Асаги",null,0]
[73,null,"Галаксия чилийская",null,0]
[74,null,"Чешуеед, Плагиотрем чешуеедный",null,0]
[75,null,"Акула-домовой",null,0]
[76,null,"Акула черная (Далатия)",null,0]
[77,null,"Краб-йети",null,0]
[78,null,"Акула светящаяся",null,0]
[79,null,"Акулеола черная",null,0]
[80,null,"Конус березовый",null,1]
[81,null,"Конус дворцовый",null,0]
[82,null,"Плоскоголов пятнистый",null,0]
[83,null,"Крокодил нильский",null,2]
[84,null,"Конус Мильн-Эдвардса",null,0]
[85,null,"Конус текстильный",null,0]
[86,null,"Вунду",null,18]
[87,null,"Конус мраморный",null,0]
[88,null,"Конус полосатый",null,0]
[89,null,"Луциан горбатый",null,0]
[90,null,"Башир",null,25]
[91,null,"Ящероголов красный",null,5]
[92,null,"Собачка речная",null,9]
[93,null,"Скат тэниура лимма",null,0]
[94,null,"Шильб полосатый",null,33]
[95,null,"Нильский окунь",null,7]
[96,null,"Тигровая рыба нильская",null,1]
[97,null,"Баяд",null,15]
[98,null,"Сом электрический",null,11]
[99,null,"Акула - квагга",null,0]
[100,null,"Карась-барабан",null,2]
[101,null,"Луциан - Бохар",null,1]
[102,null,"Шипощёк длинноперый",null,0]
[103,null,"Карась морской чернополосый",null,0]
[104,null,"Тунец индо-тихоокеанский",null,5]
[105,null,"Мурена гигантская",null,3]
[106,null,"Группер красноротый",null,0]
[107,null,"Скат-орляк пятнистый",null,0]
[108,null,"Скат-торпедо электрический",null,1]
[109,null,"Удильщик Джонсона",null,0]
[110,null,"Аба-аба",null,0]
[111,null,"Синодонтис вуалевый",null,0]
[112,null,"Горгасия красноморская",null,1]
[113,null,"Линофрина индийская",null,0]
[114,null,"Велифер",null,0]
[115,null,"Макрурус вооруженный",null,0]
[116,null,"Рыба-кабан трехполосая",null,0]
[117,null,"Группер белоокаймленный",null,1]
[118,null,"Оксимонокант длиннорылый",null,0]
[119,null,"Тиляпия галилейская",null,6]
[120,null,"Полосатик Омуры",null,0]
[121,null,"Каранкс Гебера",null,0]
[122,null,"Кит северный гладкий",null,0]
[123,null,"Форель Бива",null,0]
[124,null,"Кинжалозуб",null,0]
[125,null,"Морская свинья обыкновенная",null,0]
[126,null,"Эолидия",null,0]
[127,null,"Кит южный гладкий",null,0]
[128,null,"Каранкс бронзовый",null,0]
[129,null,"Вьюн амурский",null,0]
[130,null,"Акула мозамбикская бычья",null,0]
[131,null,"Менхэден бразильский",null,0]
[132,null,"Морская свинья бесперая",null,0]
[133,null,"Бэрардиус Бэрда",null,0]
[134,null,"Сельдь чёшско-печорская",null,0]
[135,null,"Сельдь тихоокеанская",null,0]
[136,null,"Сельдь атлантическая",null,0]
[137,null,"Сельдь волжская",null,0]
[138,null,"Пузанок северокаспийский",null,0]
[139,null,"Семапрохилодус",null,0]
[140,null,"Поллимир Исидора",null,8]
[141,null,"Тиляпия Зилля",null,20]
[142,null,"Каранг золотой",null,19]
[143,null,"Акула рифовая",null,0]
[144,null,"Алеста",null,9]
[145,null,"Убанги",null,1]
[146,null,"Тиляпия нильская",null,12]
[147,null,"Цитарина обыкновенная",null,15]
[148,null,"Хемихромис-красавец",null,24]
[149,null,"Группер таувина",null,1]
[150,null,"Кланкулюс",null,0]
[151,null,"Граммистес шестиполосый",null,0]
[152,null,"Рыба-тряпка",null,0]
[153,null,"Чешуйчатник",null,0]
[154,null,"Мурджан",null,6]
[155,null,"Тунец скумбриевидный",null,3]
[156,null,"Тилозур красноморский",null,0]
[157,null,"Конус письменный",null,0]
[158,null,"Бычеглаз-хамрур",null,0]
[159,null,"Утконос",null,0]
[160,null,"Иния",null,0]
[161,null,"Колоссома",null,0]
[162,null,"Дианема полосатохвостая",null,0]
[163,null,"Дискус Хеккеля",null,0]
[164,null,"Лепоринус зебровый",null,0]
[165,null,"Милеус ленточный",null,0]
[166,null,"Милоссома килебрюхая",null,0]
[167,null,"Лепоринус Фредерика",null,0]
[168,null,"Метиннис пятнистый",null,1]
[169,null,"Джакунда",null,0]
[170,null,"Акара голубовато-пятнистая",null,0]
[171,null,"Акарихтис Хекеля",null,0]
[172,null,"Конгер обуд",null,0]
[173,null,"Кои Платинум Огон",null,0]
[174,null,"Анаконда",null,0]
[175,null,"Биара",null,0]
[176,null,"Гидромедуза бразильская",null,0]
[177,null,"Аравана черная",null,0]
[178,null,"Астронотус глаздчатый",null,0]
[179,null,"Павлиний окунь ленточный",null,0]
[180,null,"Хараки",null,0]
[181,null,"Хемиодопсис",null,0]
[182,null,"Тукунаре",null,1]
[183,null,"Уару",null,0]
[184,null,"Цихлазома мезонаута",null,0]
[185,null,"Акула плоскоголовая",null,0]
[186,null,"Запрора",null,0]
[187,null,"Ящерица каймановая",null,0]
[188,null,"Ампуллярия",null,0]
[189,null,"Тегу",null,1]
[190,null,"Пиракатинга",null,0]
[191,null,"Пиранья краснобрюхая",null,2]
[192,null,"Пака",null,0]
[193,null,"Пираиба",null,0]
[194,null,"Пиранья стройная",null,0]
[195,null,"Таедо",null,0]
[196,null,"Тамбаку",null,0]
[197,null,"Пирапитинга",null,0]
[198,null,"Пираруку",null,0]
[199,null,"Краб Мраморный",null,0]
[200,null,"Офиура полосатая",null,0]
[201,null,"Голубая линкия",null,0]
[202,null,"Фромия элегантная",null,0]
[203,null,"Морская звезда красношипая",null,0]
[204,null,"Тасманский краб",null,0]
[205,null,"Гимносарда",null,0]
[206,null,"Аротрон колючий",null,8]
[207,null,"Акула узкозубая",null,0]
[208,null,"Ангел черноплавничный",null,0]
[209,null,"Гребешок коралловый",null,0]
[210,null,"Спинорог оранжевополосый",null,10]
[211,null,"Спинорог Розовохвостый",null,0]
[212,null,"Спинорог желтомордый",null,0]
[213,null,"Спинорог Краснозубый",null,1]
[214,null,"Черепаха зеленая",null,0]
[215,null,"Лямбис подагрический",null,3]
[216,null,"Конус Географический",null,0]
[217,null,"Ябби",null,4]
[218,null,"Стромбус Королевский",null,0]
[219,null,"Кузовок-кубик",null,9]
[220,null,"Пеламида атлантическая",null,5]
[221,null,"Скат мозаичный",null,0]
[222,null,"Морской черт или удильщик европейский",null,3]
[223,null,"Осьминог обыкновенный",null,0]
[224,null,"Тунец макрелевый",null,0]
[225,null,"Итальянский усач",null,8]
[226,null,"Чоп",null,0]
[227,null,"Тунец малый",null,24]
[228,null,"Усач Валецкого",null,0]
[229,null,"Младица или Лосось дунайский",null,0]
[230,null,"Помакант рябой",null,2]
[231,null,"Сиган звездчатый",null,0]
[232,null,"Кузовок рогатый",null,0]
[233,null,"Акула мальгашская",null,0]
[234,null,"Голец альпийский",null,0]
[235,null,"Камбала кесслера",null,1]
[236,null,"Логгерхед",null,0]
[237,null,"Долгопер средиземноморский",null,4]
[238,null,"Евдошка европейская",null,0]
[239,null,null,null,0]
[240,null,null,null,0]
[241,null,null,null,0]
[242,null,null,null,0]
[243,null,null,null,0]
[244,null,"Кои Утсури",null,0]
[245,null,"Акула исландская",null,0]
[246,null,null,null,0]
[247,null,"Акула копьезубая",null,0]
[248,null,null,null,0]
[249,null,"Омар норвежский",null,0]
[250,null,"Омар европейский",null,0]
[251,null,"Осьминог семирукий",null,0]
[252,null,"Скат круглый",null,3]
[253,null,"Краб снежный",null,0]
[254,null,"Омуль баргузинский",null,0]
[255,null,null,null,0]
[256,null,null,null,0]
[257,null,"Костерь",null,0]
[258,null,"Голец белый",null,1]
[259,null,"Амия",null,0]
[260,null,"Голец чукотский",null,0]
[261,null,"Осетр белый",null,0]
[262,null,"Хендфиш",null,0]
[263,null,"Морская свинья очковая",null,0]
[264,null,"Рыба-капля",null,0]
[265,null,"Саблезуб",null,0]
[266,null,"Бельдюга Андрияшева",null,0]
[267,null,"Макропинна",null,0]
[268,null,"Оринокский крокодил",null,0]
[269,null,"Кит гренландский",null,0]
[270,null,"Акула большеротая",null,1]
[271,null,"Скампи голубой",null,0]
[272,null,"Скат - кукушка",null,0]
[273,null,"Плавун южный",null,0]
[274,null,"Акула коромандельская",null,0]
[275,null,"Павлиний окунь королевский",null,0]
[276,null,"Нарвал",null,0]
[277,null,"Гигантская тридакна",null,1]
[278,null,"Губан пятнистый",null,1]
[279,null,"Шашень",null,23]
[280,null,"Единорог расписной",null,2]
[281,null,"Краб вельветовый",null,0]
[282,null,"Перечный слизняк",null,0]
[283,null,"Ликодонт яванский",null,2]
[284,null,"Спинорог золотоплавниковый",null,0]
[285,null,"Глаукус",null,0]
[286,null,"Полосатик Идена",null,0]
[287,null,"Спинорог бело-зеленый",null,0]
[288,null,"Ремнезуб атлантический",null,0]
[289,null,"Серцевидка",null,0]
[290,null,"Волютопсиус каштановый",null,1]
[291,null,"Морская свинья Далля",null,0]
[292,null,"Морская свинья тихоокеанская",null,1]
[293,null,"Необерингиус Фрилея",null,0]
[294,null,"Креветка северная",null,0]
[295,null,"Лиманда желтохвостая",null,7]
[296,null,"Зубатка полосатая",null,2]
[297,null,"Зубатка синяя",null,2]
[298,null,"Каллихт",null,25]
[299,null,"Буффало большеротый",null,0]
[300,null,"Буффало малоротый",null,0]
[301,null,"Рапана Венозная",null,0]
[302,null,"Венера воздушная",null,0]
[303,null,"Евдошка американская",null,0]
[304,null,"Панцирник мисиссипский",null,0]
[305,null,"Рак красный флоридский",null,0]
[306,null,"Осетр тупорылый",null,1]
[307,null,"Панцирник длиннорылый",null,0]
[308,null,"Японская макрель",null,3]
[309,null,"Бисса",null,2]
[310,null,"Луварь",null,1]
[311,null,"Кокани",null,1]
[312,null,"Краб сине-красный",null,0]
[313,null,"Морская свинья аргентинская",null,0]
[314,null,"Рыба-еж длинношипая",null,3]
[315,null,"Рыбальдо",null,0]
[316,null,"Нереис",null,0]
[317,null,"Перуанская сардина",null,4]
[318,null,"Сцимнодалатия",null,0]
[319,null,"Цетотерий",null,0]
[320,null,"Акула юкатанская",null,0]
[321,null,"Отодус",null,0]
[322,null,"Алаша",null,4]
[323,null,"Акула серая короткоперая",null,2]
[324,null,"Антиас обыкновенный",null,14]
[325,null,"Анчоус Харденберга",null,10]
[326,null,"Нотопогон",null,2]
[327,null,"Акула-молот карибская",null,0]
[328,null,"Саблезуб короткозубый",null,0]
[329,null,"Нетопырь длиннорылый",null,0]
[330,null,"Опистопрокт коротконосый",null,0]
[331,null,"Диплобатис гайянский",null,0]
[332,null,"Гуаса",null,0]
[333,null,"Базилозавр",null,0]
[334,null,"Акула кубинская кошачья",null,0]
[335,null,"Макрель западноафриканская",null,0]
[336,null,"Акула большеглазая песчаная",null,0]
[337,null,"Акула мадагаскарская острозубая",null,1]
[338,null,"Батизавр воинственный",null,0]
[339,null,"Барбурисия рыжая",null,0]
[340,null,"Омар алый когтистый",null,0]
[341,null,"Омар мозамбикский",null,0]
[342,null,"Омосудид",null,0]
[343,null,"Акула семижаберная",null,4]
[344,null,"Барракуда желтохвостая",null,9]
[345,null,"Парапристипомоид",null,0]
[346,null,"Скопелозавр",null,0]
[347,null,"Краб крестообразный",null,0]
[348,null,"Сельдь - круглобрюшка",null,14]
[349,null,"Барракуда индийская",null,0]
[350,null,"Парапагурус",null,4]
[351,null,"Акула арабская",null,13]
[352,null,"Барракуда красная",null,4]
[353,null,"Мобула серповидная",null,21]
[354,null,"Мобула короткоперая",null,7]
[355,null,"Барракуда большеглазая",null,0]
[356,null,"Мобула терстони",null,0]
[357,null,"Гимантолоф атлантический",null,0]
[358,null,"Акулка карликовая",null,5]
[359,null,"Кабра-мора",null,1]
[360,null,"Фундулюс",null,0]
[361,null,"Иглобрюх-попугайчик",null,0]
[362,null,"Этмоптерус Шульца",null,3]
[363,null,"Цапатеро-чакета",null,3]
[364,null,"Группер темный",null,0]
[365,null,"Амфихт",null,8]
[366,null,"Скватина американская",null,2]
[367,null,"Цапатеро",null,23]
[368,null,"Тарпон атлантический",null,0]
[369,null,"Гуачанчо",null,5]
[370,null,"Звездочет крапчатый",null,2]
[371,null,"Гуативера",null,2]
[372,null,"Акула флоридская",null,5]
[373,null,"Кабрилья",null,13]
[374,null,"Бычерыл американский",null,0]
[375,null,"Марлин атлантический",null,8]
[376,null,"Этмоптерус серый",null,6]
[377,null,"Кобия",null,7]
[378,null,"Акула Оустона",null,3]
[379,null,"Грамма королевская",null,2]
[380,null,"Акула американская кунья",null,3]
[381,null,"Акула острозубая песчаная",null,1]
[382,null,"Кубера",null,0]
[383,null,"Устрица гигантская",null,0]
[384,null,"Бентодесма",null,0]
[385,null,"Хвостокол американский",null,1]
[386,null,"Хвостокол бахромчатый",null,9]
[387,null,"Макрель китайская",null,0]
[388,null,null,null,0]
[389,null,"Макрель испанская",null,5]
[390,null,"Акула - нянька усатая",null,0]
[391,null,"Акула австралийская головастая",null,0]
[392,null,"Макрель продольно-полосатая",null,0]
[393,null,"Макрель широкополосая",null,1]
[394,null,"Макрель малагасийская",null,0]
[395,null,"Макрель австралийская",null,2]
[396,null,"Макрель квинслендская",null,0]
[397,null,"Кохола Сперм",null,27]
[398,null,"Даскиллус гавайский",null,34]
[399,null,"Акрофизетр",null,0]
[400,null,null,null,19]
[401,null,"Камбала павлинья",null,28]
[402,null,"Рыба-ангел японская",null,8]
[403,null,"Тремоктопус",null,14]
[404,null,"Кохола Полу",null,20]
[405,null,"Кохола Пигми",null,32]
[406,null,"Кит южный гладкий-альбинос",null,0]
[407,null,"Махсир темный",null,0]
[408,null,"Махсир золотой",null,0]
[409,null,"Усач - гаечный ключ",null,0]
[410,null,"Рак пурпурный",null,5]
[411,null,"Акулка Аполлона",null,14]
[412,null,"Змееголов императорский",null,0]
[413,null,"Богаскайа",null,0]
[414,null,"Гурами гигантский-альбинос",null,0]
[415,null,"Змееголов Золотая кобра",null,0]
[416,null,"Наутилус обыкновенный",null,30]
[417,null,"Крайт морской",null,0]
[418,null,"Ехидна одноцветная",null,1]
[419,null,"Конгер песчаный решетчатый",null,4]
[420,null,"Полосатик Райса",null,0]
[421,null,"Ехидна сулавесийская",null,0]
[422,null,"Морская змея Хардвика",null,0]
[423,null,"Ехидна белолобая",null,0]
[424,null,"Вундерпус",null,0]
[425,null,"Прометеева рыба",null,0]
[426,null,"Черепахоголов Стейнеджера",null,3]
[427,null,"Ехидна полосатая",null,18]
[428,null,"Конгер большеглазый",null,8]
[429,null,"Морская змея гладкая",null,31]
[430,null,"Ехидна гвинейская",null,19]
[431,null,"Ластохвост спиральный",null,20]
[432,null,"Рыба-прилипало",null,7]
[433,null,"Гребешок коричневый",null,26]
[434,null,"Морская змея Белчера",null,16]
[435,null,"Неалот тихоокеанский",null,20]
[436,null,"Махсир красный",null,0]
[437,null,"Тунец длиннохвостый",null,0]
[438,null,"Тунец синеперый",null,0]
[439,null,"Спинорог синегорлый",null,4]
[440,null,"Тунец Большеглазый",null,0]
[441,null,"Угорь крапчатый",null,2]
[442,null,"Лангуст полифагус",null,3]
[443,null,"Омар капский",null,5]
[444,null,"Флейторыл китайский",null,4]
[445,null,"Химера длинноносая",null,10]
[446,null,"Спинорог масочный",null,2]
[447,null,"Барракуда остроперая",null,4]
[448,null,"Бомбиль индоокеанский",null,1]
[449,null,null,null,0]
[450,null,"Акула рифовая белая",null,2]
[451,null,"Гимнура Натальская",null,2]
[452,null,"Марлин индо-тихоокеанский",null,0]
[453,null,"Миксина шестижаберная",null,1]
[454,null,"Группер мраморный",null,2]
[455,null,"Группер шоколадный",null,30]
[456,null,"Акула кубинская ночная",null,0]
[457,null,"Акула святого Иосифа",null,0]
[458,null,"Сом Хасселя",null,19]
[459,null,"Лягушка суматранская",null,19]
[460,null,"Гурами Вайланта",null,32]
[461,null,"Расбора двухточечная",null,3]
[462,null,"Змееголов малабарский",null,15]
[463,null,"Змееголов радужный",null,17]
[464,null,"Махсир малайский",null,12]
[465,null,"Аравана азиатская",null,1]
[466,null,"Усач тигровый шестиполосый",null,5]
[467,null,"Акула вислоносая",null,0]
[468,null,"Акула щелеглазая",null,0]
[469,null,"Барракуда Хеллера",null,0]
[470,null,"Акула лимонная",null,0]
[471,null,"Акула головастая надувающаяся",null,0]
[472,null,"Вьюн муреновидный",null,26]
[473,null,"Макрогнатус пятнистый",null,18]
[474,null,"Краб-вампир яванский",null,13]
[475,null,"Сарган пресноводный",null,24]
[476,null,"Гипоплектрус",null,3]
[477,null,"Тигровая рыба танзанийская",null,3]
[478,null,"Окунь вилохвостый",null,4]
[479,null,"Золотой леопард",null,3]
[480,null,"Мбенга",null,5]
[481,null,"Мормир бутылконосый",null,1]
[482,null,"Нимбохромис полистигма",null,2]
[483,null,"Солидус",null,0]
[484,null,"Коелатура мозамбикская",null,1]
[485,null,"Аухеногланис",null,2]
[486,null,"Сом мраморный",null,34]
[487,null,"Окунь танганьикский",null,19]
[488,null,"Окунь большеглазый",null,8]
[489,null,"Тиляпия мозамбикская",null,2]
[490,null,"Гетеротис",null,3]
[491,null,"Мбамба",null,6]
[492,null,"Цихлида тупорылая",null,0]
[493,null,"Шпрот таганьикский",null,0]
[494,null,"Цихлида гигантская",null,14]
[495,null,"Нодулария боеми",null,0]
[496,null,"Сом танганьикский",null,0]
[497,null,"Аспатария марнои",null,0]
[498,null,"Эферия эллиптическая",null,0]
[499,null,"Камерония Бургинья",null,0]
[500,null,"Шамбардия Валберга",null,0]
[501,null,"Группер желто-синий",null,0]
[502,null,"Сиган струйчатый",null,3]
[503,null,"Угорь собачий",null,0]
[504,null,"Крылатка антенновая",null,3]
[505,null,"Кудрепер Форстера",null,1]
[506,null,"Тифобия",null,0]
[507,null,"Стигматохромис вуди",null,1]
[508,null,"Трофеус звездчатый",null,1]
[509,null,"Сом ширентис",null,0]
[510,null,"Сомик - кукушка",null,1]
[511,null,"Цихлида-дельфин",null,0]
[512,null,"Буртония Фоаи",null,0]
[513,null,"Аспатария пифлоидная",null,1]
[514,null,"Цихлида Ливингстона",null,14]
[515,null,"Мутела",null,1]
[516,null,"Тиляпия красногрудая",null,8]
[517,null,"Мена пятнистая",null,0]
[518,null,"Мурена перечная",null,0]
[519,null,"Бородавчатка красноморская",null,2]
[520,null,"Крылатка-зебра",null,0]
[521,null,"Неалот",null,0]
[522,null,null,null,0]
[523,null,"Тигровая рыба обыкновенная",null,0]
[524,null,"Свистулька голубопятнистая",null,0]
[525,null,"Скорпенопсис дьявольский",null,22]
[526,null,"Акула свиноглазая",null,0]
[527,null,"Сом жирафовый",null,1]
[528,null,"Карп африканский",null,2]
[529,null,"Протоптер мраморный",null,1]
[530,null,"Фахака",null,0]
[531,null,"Лягушка нильская",null,1]
[532,null,"Полиптер",null,4]
[533,null,"Семутунду",null,4]
[534,null,"Мелания песчаная",null,0]
[535,null,"Мормиропс угревидный",null,4]
[536,null,"Китовая акула - альбинос",null,0]
[537,null,"Лабидохромис Хонги",null,0]
[538,null,"Офтальмотиляпия носатая",null,1]
[539,null,"Лабеотрофеус обыкновенный",null,26]
[540,null,"Лабидохромис большой",null,5]
[541,null,"Принцесса Бурунди",null,0]
[542,null,"Летрин длиннорылый",null,2]
[543,null,"Фея перламутровая",null,0]
[544,null,"Псевдотрофеус Демасони",null,0]
[545,null,"Сардина танганьикская",null,8]
[546,null,"Королева Танганьики",null,0]
[547,null,"Аристохромис Кpucmu",null,3]
[548,null,"Аулонокара Бенша",null,1]
[549,null,"Кит Бискайский",null,0]
[550,null,"Сферомия пятнистая",null,0]
[551,null,"Аулонокара Ньяса",null,0]
[552,null,"Клоун танганьикский",null,1]
[553,null,"Королева Ньяса",null,0]
[554,null,"Бычок краснозубый",null,1]
[555,null,"Кальвус",null,3]
[556,null,"Группер индоокеанский малоглазый",null,0]
[557,null,"Акула гладкозубая",null,0]
[558,null,"Скат-орляк изысканный",null,0]
[559,null,"Акула-нянька короткохвостая",null,0]
[560,null,"Мурена европейская",null,0]
[561,null,"Минога каспийская",null,0]
[562,null,"Подкаменщик пестроногий",null,0]
[563,null,"Дораб",null,0]
[564,null,"Мобула японская",null,0]
[565,null,"Ремнезуб Блэнвиля",null,0]
[566,null,"Скат пятнистый",null,0]
[567,null,"Скат-орляк белоточечный",null,0]
[568,null,"Скар двухцветный",null,0]
[569,null,"Скар широколобый",null,0]
[570,null,"Сладкогуб гигантский",null,0]
[571,null,"Элагат",null,0]
[572,null,null,null,0]
[573,null,"Спинорог позолоченый",null,0]
[574,null,"Хвостокол широкохвостый",null,0]
[575,null,"Скат Аддисона",null,0]
[576,null,"Корифена малая",null,4]
[577,null,"Акула надувающаяся",null,0]
[578,null,"Гаррупа-мармита",null,0]
[579,null,"Мероу красный",null,0]
[580,null,"Амфитретус пелагический",null,0]
[581,null,"Этелис королевский",null,6]
[582,null,"Копьеносец малый",null,3]
[583,null,"Гримпотевтис тихоокеанский",null,0]
[584,null,"Кардинал",null,0]
[585,null,"Черна бурополосая",null,9]
[586,null,"Снэппер низкотелый",null,2]
[587,null,"Макрель бразильская",null,30]
[588,null,"Акула - пилохвост",null,0]
[589,null,"Снэппер нитеперый",null,25]
[590,null,"Макрель-Кавалла",null,11]
[591,null,"Трахинот Кеннеди",null,0]
[592,null,"Трахинот круглый",null,0]
[593,null,"Макрель западноатлантическая",null,0]
[594,null,"Трахинот большой",null,5]
[595,null,"Сарган крокодиловый",null,27]
[596,null,"Акула мадагаскарская",null,0]
[597,null,"Акула - небрия",null,1]
[598,null,"Плоскоголов бахромчатый",null,1]
[599,null,"Группер крупнопятнистый",null,23]
[600,null,"Сердеронг чернопятнистый",null,15]
[601,null,"Спинорог голубой",null,0]
[602,null,"Хирург белогрудый",null,1]
[603,null,"Акула пелагическая лисья",null,0]
[604,null,"Акула пилозубая",null,0]
[605,null,null,null,30]
[606,null,"Протоптер бурый",null,0]
[607,null,"Протоптер малый",null,0]
[608,null,"Удильщик Коммерсона",null,0]
[609,null,"Лягушка роющая",null,0]
[610,null,"Ореохромис Каронга",null,6]
[611,null,"Барракуда тупорылая",null,14]
[612,null,"Акула шелковая",null,2]
[613,null,"Сом малавийский",null,18]
[614,null,"Группер буропятнистый",null,12]
[615,null,"Дистиходус шестиполосый",null,3]
[616,null,"Каранкс черный",null,7]
[617,null,"Мурена - зебра",null,8]
[618,null,"Вариола белокаемчатая",null,0]
[619,null,"Группер шестиполосый",null,2]
[620,null,"Мурена желторотая",null,0]
[621,null,"Носорог однорогий",null,0]
[622,null,"Платакс - нетопырь",null,2]
[623,null,"Мурена ленточная",null,0]
[624,null,"Носорог безрогий",null,0]
[625,null,"Бротула многоусая",null,0]
[626,null,"Многопёр Эндлихера",null,2]
[627,null,"Краб монтивагус",null,0]
[628,null,"Кампанго",null,11]
[629,null,"Крокодил узкорылый",null,1]
[630,null,"Краб малавийский голубой",null,0]
[631,null,"Акула темная",null,0]
[632,null,"Алект вымпельный",null,0]
[633,null,"Краб танганьикский",null,1]
[634,null,"Акула большеносая",null,0]
[635,null,"Спинорог голубоперый",null,2]
[636,null,"Тартаруга",null,2]
[637,null,"Кашорро краснохвостый",null,7]
[638,null,"Угорь речной американский",null,11]
[639,null,"Тунец желтопёрый",null,15]
[640,null,"Форель мраморная",null,0]
[641,null,"Морская собачка",null,0]
[642,null,"Лосось атлантический",null,6]
[643,null,"Осетр русский",null,19]
[644,null,"Минога огайская",null,15]
[645,null,"Сомик канальный",null,7]
[646,null,"Сомик желтый",null,4]
[647,null,"Рак сигнальный",null,0]
[648,null,"Шемая черноморская",null,0]
[649,null,"Минога морская",null,3]
[650,null,"Голец усатый",null,2]
[651,null,"Осетр атлантический",null,28]
[652,null,"Краб пресноводный",null,6]
[653,null,"Гребешок многообразный",null,0]
[654,null,"Бутылконос северный",null,16]
[655,null,"Косатка",null,33]
[656,null,"Хариус восточносибирский",null,12]
[657,null,"Корюшка",null,24]
[658,null,"Тонна гигантская",null,0]
[659,null,"Кашалот карликовый",null,0]
[660,null,"Щука травяная",null,8]
[661,null,"Скат колючий",null,29]
[662,null,"Щука красноперая",null,15]
[663,null,"Форель золотая",null,1]
[664,null,"Сардина европейская",null,14]
[665,null,"Кефаль-губач",null,5]
[666,null,"Архитеутис",null,2]
[667,null,"Тригла желтая",null,16]
[668,null,"Краппи белый",null,7]
[669,null,"Бычок-кругляк",null,28]
[670,null,"Поллак",null,0]
[671,null,"Линь",null,15]
[672,null,"Фикус изящный",null,1]
[673,null,"Краб съедобный",null,0]
[674,null,"Ротан",null,33]
[675,null,"Тюрбо",null,8]
[676,null,"Сердцевидка съедобная",null,1]
[677,null,"Ершоватка",null,13]
[678,null,"Терпуг одноперый",null,0]
[679,null,"Глосса",null,2]
[680,null,"Патагонский лобстер",null,3]
[681,null,"Трахира Хоплиас, Малабарский хоплиас",null,2]
[682,null,"Толстолобик белый",null,21]
[683,null,"Севрюга",null,4]
[684,null,"Сом",null,35]
[685,null,"Сарган",null,1]
[686,null,"Группер картофельный",null,26]
[687,null,"Марлин голубой",null,13]
[688,null,"Группер томатный",null,10]
[689,null,"Карп индийский",null,0]
[690,null,"Мригал",null,23]
[691,null,"Тунец голубой",null,14]
[692,null,"Солнечник синежаберный",null,12]
[693,null,"Окунь алеутский",null,8]
[694,null,"Окунь северный морской",null,23]
[695,null,"Вырезуб",null,5]
[696,null,"Клювач северный",null,13]
[697,null,"Марлин полосатый",null,4]
[698,null,"Луциан темно-бурый",null,18]
[699,null,"Терпуг зайцеголовый",null,1]
[700,null,"Каранкс большой",null,4]
[701,null,"Камнеточец",null,0]
[702,null,"Букцинум",null,0]
[703,null,"Рыба-луна",null,23]
[704,null,"Золотистая скорпена",null,4]
[705,null,"Акула длиннокрылая",null,2]
[706,null,"Осетр персидский",null,8]
[707,null,"Менёк",null,5]
[708,null,"Флейторыл",null,0]
[709,null,"Перуанская сериолелла",null,13]
[710,null,"Конголли",null,5]
[711,null,"Полосатик карликовый",null,4]
[712,null,"Рыба-лира",null,2]
[713,null,"Буффало черный",null,0]
[714,null,"Акула-молот обыкновенная",null,3]
[715,null,"Инанга",null,8]
[716,null,"Камбала зеленая",null,3]
[717,null,"Манта",null,12]
[718,null,"Ледяная рыба",null,13]
[719,null,"Каранкс синеплавниковый",null,1]
[720,null,"Акула кошачья",null,2]
[721,null,"Сомик оливковый",null,2]
[722,null,"Окунь-пират",null,0]
[723,null,"Акула белоперая",null,5]
[724,null,"Кефаль алмазная",null,2]
[725,null,"Гребешок приморский",null,2]
[726,null,"Сериола большая",null,6]
[727,null,"Группер леопардовый",null,9]
[728,null,"Анчоус японский",null,5]
[729,null,"Макруронус новозеландский",null,2]
[730,null,"Новозеландская мерлуза",null,14]
[731,null,"Акула пепельная",null,4]
[732,null,"Пятнистый воббегонг",null,2]
[733,null,"Усач днепровский",null,2]
[734,null,"Ореховидка тонкая",null,0]
[735,null,"Скат полярный",null,13]
[736,null,"Голец якутский",null,0]
[737,null,"Скат короткохвостый",null,3]
[738,null,"Тасманский рак",null,7]
[739,null,"Карп гигантский",null,1]
[740,null,"Скат Монтегю",null,3]
[741,null,"Губан радужный",null,4]
[742,null,"Треска восточная",null,12]
[743,null,"Сельдь черноморская",null,2]
[744,null,"Лунник",null,0]
[745,null,"Минтай",null,19]
[746,null,"Пятнистая озерная лягушка",null,3]
[747,null,"Галаксия пятнистая",null,4]
[748,null,"Императорский ангел",null,0]
[749,null,"Группер корраловый красный",null,3]
[750,null,"Каракатица лечебная",null,0]
[751,null,"Акула звездчатошипая",null,4]
[752,null,"Амур черный",null,1]
[753,null,"Краб четырехугольный волосатый",null,2]
[754,null,"Акула-бык",null,0]
[755,null,"Краб травяной",null,0]
[756,null,"Вампир адский",null,2]
[757,null,"Акула Сейла",null,0]
[758,null,"Горбуша южноамериканская",null,10]
[759,null,"Микижа чилийская",null,6]
[760,null,"Щука амурская",null,18]
[761,null,"Троегуб",null,4]
[762,null,"Рипус",null,25]
[763,null,"Бычок-цуцик",null,0]
[764,null,"Скат Йенсена",null,3]
[765,null,"Ерш-носарь",null,11]
[766,null,"Каракатица расписная",null,3]
[767,null,"Ваху",null,4]
[768,null,"Каури-монета",null,0]
[769,null,"Спинорог расписной",null,12]
[770,null,"Окунь морской норвежский",null,32]
[771,null,"Зубарик обыкновенный",null,14]
[772,null,"Акула мелкозубая",null,1]
[773,null,"Катран",null,23]
[774,null,"Лаврак белый",null,26]
[775,null,"Таймень",null,33]
[776,null,"Лосось Кларка",null,2]
[777,null,"Нельма",null,23]
[778,null,"Ангел лирохвостый",null,0]
[779,null,"Спинорог заплаточный",null,3]
[780,null,"Клюворыл",null,27]
[781,null,"Идол мавританский",null,0]
[782,null,"Щука-маскинонг",null,26]
[783,null,"Тунец длинноперый",null,16]
[784,null,"Щука черная",null,9]
[785,null,"Сплэйк",null,15]
[786,null,"Скат акулий",null,4]
[787,null,"Акула темноперая",null,0]
[788,null,"Луциан чернохвостый",null,11]
[789,null,"Покрышка старая",null,34]
[790,null,"Акула - собака",null,19]
[791,null,"Сайда",null,33]
[792,null,"Окунь - клювач",null,6]
[793,null,"Сайка",null,6]
[794,null,"Голец - кристивомер",null,32]
[795,null,"Губан носатый",null,0]
[796,null,"Путассу северная",null,0]
[797,null,"Треска атлантическая",null,21]
[798,null,"Рыба-наполеон",null,25]
[799,null,"Омуль маломорский",null,3]
[800,null,"Широколобка темная",null,5]
[801,null,"Солнечник обыкновенный",null,0]
[802,null,"Байкальский осетр",null,1]
[803,null,"Рыбец",null,3]
[804,null,"Подкаменщик",null,8]
[805,null,"Хариус байкальский Белый",null,5]
[806,null,"Хариус байкальский черный",null,19]
[807,null,"Окунь большеротый",null,20]
[808,null,"Окунь ушастый",null,5]
[809,null,"Омуль посольский",null,13]
[810,null,"Сомик голубой",null,5]
[811,null,"Окунь каменный",null,21]
[812,null,"Сомик американский",null,10]
[813,null,"Окунь прибрежный",null,12]
[814,null,"Веслонос",null,6]
[815,null,"Пагр красный",null,5]
[816,null,"Тунец южный",null,4]
[817,null,"Акула серо-бурая",null,15]
[818,null,"Спинорог точечный",null,0]
[819,null,"Нейва",null,8]
[820,null,"Рыба-бекас",null,1]
[821,null,"Спинорог Пикассо",null,8]
[822,null,"Аротрон белоточечный",null,4]
[823,null,"Чавыча южноамериканская",null,24]
[824,null,"Кумжа южноамериканская",null,11]
[825,null,"Карась якутский",null,15]
[826,null,"Кижуч южноамериканский",null,6]
[827,null,"Сима южноамериканская",null,18]
[828,null,"Лягушка озерная",null,1]
[829,null,"Щучка Хьюжета",null,3]
[830,null,"Дорадо золотой",null,1]
[831,null,"Берш",null,29]
[832,null,"Судак",null,12]
[833,null,"Пиранья обыкновенная",null,19]
[834,null,"Парусник",null,5]
[835,null,"Елец-андруга",null,0]
[836,null,"Быстрянка",null,0]
[837,null,"Синец",null,8]
[838,null,"Краснопер мелкочешуйчатый",null,24]
[839,null,"Хариус сибирский",null,14]
[840,null,"Форель тигровая",null,0]
[841,null,"Амур белый",null,33]
[842,null,"Гольян Чекановского",null,0]
[843,null,"Жерех",null,16]
[844,null,"Хариус ленский",null,11]
[845,null,"Краб красный мангровый",null,0]
[846,null,"Тонна ленточная",null,0]
[847,null,"Дрейссена речная",null,1]
[848,null,"Судак канадский",null,31]
[849,null,"Косатка-скрипун",null,4]
[850,null,"Желтощек",null,8]
[851,null,"Стерлядь",null,10]
[852,null,"Адамуссиум",null,13]
[853,null,"Белуга черноморская",null,2]
[854,null,"Змеиная макрель",null,1]
[855,null,"Краснопёр монгольский",null,4]
[856,null,"Косатка уссурийская",null,14]
[857,null,"Топь",null,0]
[858,null,"Бычок-кнут",null,8]
[859,null,"Змееголов",null,0]
[860,null,"Рак речной",null,1]
[861,null,"Верхогляд",null,3]
[862,null,"Сом солдатова",null,11]
[863,null,"Белуга",null,4]
[864,null,"Нерпа байкальская",null,0]
[865,null,"Сом Суруби",null,4]
[866,null,"Палтус атлантический",null,22]
[867,null,"Омуль чивыркуйский",null,1]
[868,null,"Голец Таранца",null,4]
[869,null,"Стерлядь сибирская",null,15]
[870,null,"Палия южноамериканская",null,13]
[871,null,"Кит горбатый-альбинос",null,12]
[872,null,"Павлиний окунь-бабочка",null,23]
[873,null,"Щука глубинная",null,4]
[874,null,"Хирург флаговый",null,4]
[875,null,"Сомик леопардовый",null,4]
[876,null,"Моллюск",null,6]
[877,null,"Мольва",null,22]
[878,null,"Голец черского",null,22]
[879,null,"Палия американская",null,7]
[880,null,"Губан колючий",null,10]
[881,null,"Карась морской",null,1]
[882,null,"Голавль",null,1]
[883,null,"Лещ морской кинжальный",null,22]
[884,null,"Чехонь",null,24]
[885,null,"Мальма",null,21]
[886,null,"Хризиптера сине-желтая",null,0]
[887,null,"Акула галапагосская",null,0]
[888,null,"Шип",null,19]
[889,null,"Палия",null,1]
[890,null,"Осетр якутский",null,2]
[891,null,"Зеленушка",null,8]
[892,null,"Моторо",null,11]
[893,null,"Форель севанская",null,3]
[894,null,"Акула-молот бронзовая",null,10]
[895,null,"Гольян озерный",null,21]
[896,null,"Пирапутанга",null,0]
[897,null,"Чукучан",null,3]
[898,null,"Шемая",null,1]
[899,null,"Востробрюшка уссурийская",null,1]
[900,null,"Чебак",null,7]
[901,null,"Ряпушка сибирская",null,0]
[902,null,"Масляная рыба",null,3]
[903,null,"Черт лабынкырский",null,0]
[904,null,"Даллия",null,10]
[905,null,"Уклейка",null,0]
[906,null,"Кэтфиш",null,0]
[907,null,"Лосось каспийский",null,0]
[908,null,"Колюшка девятииглая",null,25]
[909,null,"Кутум",null,0]
[910,null,"Ряпушка",null,28]
[911,null,"Тугун",null,0]
[912,null,"Орфа",null,0]
[913,null,"Конь пестрый",null,19]
[914,null,"Черепаха кожистая",null,1]
[915,null,"Рыба-бабочка сомалийская",null,0]
[916,null,"Краб кокосовый",null,15]
[917,null,"Вариола радужная",null,0]
[918,null,"Толстолобик пестрый",null,3]
[919,null,"Жерех - лысач",null,3]
[920,null,"Альбула",null,1]
[921,null,"Мазутный двухголов",null,0]
[922,null,"Группер стройный",null,2]
[923,null,"Рыба-белка",null,0]
[924,null,"Чилим",null,0]
[925,null,"Кальмар гигантский",null,3]
[926,null,"Хирург зебровый",null,1]
[927,null,"Луциан королевский",null,6]
[928,null,"Луциан розовый",null,5]
[929,null,"Барабулька",null,17]
[930,null,"Луциан императорский красный",null,4]
[931,null,"Линь золотистый",null,0]
[932,null,"Сладкогуб пятнистый",null,2]
[933,null,"Дасцилл зебровидный",null,1]
[934,null,"Колюшка трехиглая",null,17]
[935,null,"Омуль северобайкальский",null,28]
[936,null,"Сайра атлантическая",null,4]
[937,null,"Угай крупночешуйчатый",null,3]
[938,null,"Хвостокол Мацубары",null,0]
[939,null,"Кит серый",null,2]
[940,null,"Пинагор",null,3]
[941,null,"Хирург желтоплавничный",null,14]
[942,null,"Камбала двухлинейная",null,0]
[943,null,"Шпрот европейский",null,2]
[944,null,"Пагелл красный",null,9]
[945,null,"Тарань",null,25]
[946,null,"Черепаха болотная",null,0]
[947,null,"Мускулус",null,0]
[948,null,"Усач обыкновенный",null,16]
[949,null,"Черепаха каспийская",null,21]
[950,null,"Осетр амурский",null,0]
[951,null,"Тракакса",null,1]
[952,null,"Сельдь каспийская",null,3]
[953,null,"Даватчан",null,0]
[954,null,"Длиннорылый полурыл",null,0]
[955,null,"Арапаима",null,0]
[956,null,"Кои Ямабуки Огон",null,4]
[957,null,"Акула белоглазая",null,2]
[958,null,"Угай мелкочешуйный",null,3]
[959,null,"Луциан синеполосый",null,2]
[960,null,"Мойва",null,2]
[961,null,"Хариус лабынкырский",null,17]
[962,null,"Сомик черный",null,1]
[963,null,"Акула ночная",null,0]
[964,null,"Палия лудожная",null,4]
[965,null,"Калуга",null,0]
[966,null,"Омуль пенжинский",null,2]
[967,null,"Малакост черный",null,0]
[968,null,"Галаксия тасманская",null,1]
[969,null,"Карась мухтельский",null,0]
[970,null,"Мальма южная",null,0]
[971,null,"Австралийский шишечник",null,0]
[972,null,"Акула черноперая",null,1]
[973,null,"Коаро",null,3]
[974,null,"Австралийский анчоус",null,1]
[975,null,"Осетр сахалинский",null,0]
[976,null,"Краб пятиугольный волосатый",null,0]
[977,null,"Краб-стригун",null,0]
[978,null,"Петушок",null,0]
[979,null,"Мерценария стимпсона",null,0]
[980,null,"Кальмар командорский",null,0]
[981,null,"Кальмар тихоокеанский",null,0]
[982,null,"Краб мохнаторукий японский",null,0]
[983,null,"Краб-стригун японский",null,0]
[984,null,"Аррип малый",null,4]
[985,null,"Мангровый джек",null,1]
[986,null,"Крокодил Джонстона",null,0]
[987,null,"Лещ черный южный",null,0]
[988,null,"Окунь золотой",null,0]
[989,null,"Пигоплит, Королевский ангел",null,9]
[990,null,"Мелкозубый пилорыл",null,0]
[991,null,"Энгидрина носатая",null,0]
[992,null,"Комета, Каллоплезиопс",null,0]
[993,null,"Бородавчатка",null,0]
[994,null,"Брызгун крупнопятнистый",null,0]
[995,null,"Барамунди",null,0]
[996,null,"Саратога",null,0]
[997,null,"Гребешок лунный",null,0]
[998,null,"Двухцветная пеламида",null,0]
[999,null,"Стромбус волнистый",null,0]
[1000,null,"Ворчун крапчатый",null,0]
[1001,null,"Макома широкая",null,0]
[1002,null,"Рак пятнистый",null,0]
[1003,null,"Головастик гигантский",null,0]
[1004,null,"Мидия",null,13]
[1005,null,"Рапана жилковатая",null,0]
[1006,null,"Прудовик",null,0]
[1007,null,"Зубатка дальневосточная",null,0]
[1008,null,"Судак глубинный",null,0]
[1009,null,"Палия кряжевая",null,1]
[1010,null,"Луфарь",null,0]
[1011,null,"Целакант коморский",null,0]
[1012,null,"Улитка",null,0]
[1013,null,"Сиг-востряк",null,1]
[1014,null,"Минога тихоокеанская",null,1]
[1015,null,"Кумжа черноморская",null,0]
[1016,null,"Морская лисица",null,3]
[1017,null,"Ряпушка переславская",null,0]
[1018,null,"Минога украинская",null,0]
[1019,null,"Мактра сахалинская",null,0]
[1020,null,"Гребешок бело-розовый",null,0]
[1021,null,"Серрипес замечательный",null,0]
[1022,null,"Глицимерис приморский",null,1]
[1023,null,"Мактра китайская",null,0]
[1024,null,"Каллитака Адамса",null,0]
[1025,null,"Перонидия жилковатая",null,0]
[1026,null,"Гребешок свифта",null,0]
[1027,null,"Кардиум реснитчатый",null,0]
[1028,null,"Морской ворон",null,2]
[1029,null,"Сиг хадары",null,0]
[1030,null,"Акула лососевая",null,1]
[1031,null,"Макрурус малоглазый",null,0]
[1032,null,"Микижа шантарская",null,0]
[1033,null,"Морской монах",null,0]
[1034,null,"Угольная рыба",null,1]
[1035,null,"Узо-угай",null,1]
[1036,null,"Акула зебровая",null,1]
[1037,null,"Морской финик",null,0]
[1038,null,"Лудога",null,14]
[1039,null,"Гринда короткоплавниковая",null,0]
[1040,null,"Черепаха саванная",null,0]
[1041,null,"Пиранья вымпельная",null,3]
[1042,null,"Морской орел пятнистый",null,10]
[1043,null,"Аравана серебристая",null,31]
[1044,null,"Валаамка",null,7]
[1045,null,"Чилийская пеламида",null,0]
[1046,null,"Лемонема",null,1]
[1047,null,"Краб королевский",null,3]
[1048,null,"Тунец полосатый",null,2]
[1049,null,"Патагонский клыкач",null,2]
[1050,null,"Звезда-подушка",null,0]
[1051,null,"Кит карликовый",null,15]
[1052,null,"Акула-лисица",null,8]
[1053,null,"Попока",null,5]
[1054,null,"Кальмар обыкновенный",null,0]
[1055,null,"Мерланг",null,33]
[1056,null,"Мако длинноплавниковый",null,1]
[1057,null,"Шортбилл",null,0]
[1058,null,"Осьминог синекольчатый",null,0]
[1059,null,"Золотистая сериола",null,11]
[1060,null,"Нанностом Бекфорда",null,1]
[1061,null,"Группер странствующий",null,2]
[1062,null,"Голец-усач сибирский",null,1]
[1063,null,"Осетр сибирский",null,1]
[1064,null,"Группер Квинслендский",null,0]
[1065,null,"Корюшка зубатая азиатская",null,6]
[1066,null,"Пузанок",null,1]
[1067,null,"Рогатка",null,3]
[1068,null,"Марлин черный",null,6]
[1069,null,"Рыба-лягушка",null,0]
[1070,null,"Лиманда сахалинская",null,0]
[1071,null,"Акула песчаная",null,0]
[1072,null,"Акула полярная",null,5]
[1073,null,"Мактромерис изменчивый",null,0]
[1074,null,"Промикропс",null,0]
[1075,null,"Сима",null,32]
[1076,null,"Лиманда длиннорылая",null,0]
[1077,null,"Губан гребенчатый",null,0]
[1078,null,"Скат лучевой",null,0]
[1079,null,"Бельдюга восточная",null,0]
[1080,null,"Багре гури",null,1]
[1081,null,"Птеригоплихт парчовый",null,0]
[1082,null,"Скалярия Леопольда",null,16]
[1083,null,"Апистограмма факельная",null,0]
[1084,null,"Краб колючий",null,0]
[1085,null,"Песчанка тихоокеанская",null,6]
[1086,null,"Абрамитес мраморный",null,0]
[1087,null,"Каллиста короткосифонная",null,1]
[1088,null,"Камбала звездчатая",null,15]
[1089,null,"Гонатус",null,0]
[1090,null,"Оникия",null,0]
[1091,null,"Камбала полосатая",null,0]
[1092,null,"Хапаку",null,1]
[1093,null,"Устрица",null,15]
[1094,null,"Перуанский ансчоус",null,2]
[1095,null,"Аррип Большой",null,1]
[1096,null,"Патагонский гребешок",null,15]
[1097,null,"Кои Сёва",null,1]
[1098,null,"Акула азиатская кунья",null,1]
[1099,null,"Желтохвост",null,1]
[1100,null,"Акула японская бычья",null,0]
[1101,null,"Скалозуб бурый",null,0]
[1102,null,"Омуль байкальский",null,8]
[1103,null,"Омуль",null,4]
[1104,null,"Острорылый крокодил",null,3]
[1105,null,"Перуанская ставрида",null,21]
[1106,null,"Гребешок исландский",null,0]
[1107,null,"Акула индонезийская",null,0]
[1108,null,"Лещ восточно-сибирский",null,26]
[1109,null,"Красный конгрио",null,0]
[1110,null,"Шабути",null,1]
[1111,null,"Берикс австралийский",null,35]
[1112,null,"Миксина атлантическая",null,1]
[1113,null,"Группер павлиний",null,15]
[1114,null,"Австралийский колючепёр",null,0]
[1115,null,"Палтус белокорый",null,0]
[1116,null,"Ламна или Акула сельдевая атлантическая",null,1]
[1117,null,"Мурена ячеистая",null,4]
[1118,null,"Белоглазка",null,12]
[1119,null,"Ремнезуб Грея",null,9]
[1120,null,"Мандаринка",null,8]
[1121,null,"Химера европейская",null,1]
[1122,null,"Рак длиннопалый",null,0]
[1123,null,"Кои Кохаку",null,0]
[1124,null,"Кои Оренжи Огон",null,0]
[1125,null,"Палтус стрелозубый",null,0]
[1126,null,"Перуанская макрель",null,0]
[1127,null,"Кашалот-альбинос",null,0]
[1128,null,"Дорадо",null,19]
[1129,null,"Финта",null,19]
[1130,null,"Кайман крокодиловый",null,1]
[1131,null,"Пузанок дунайский",null,1]
[1132,null,"Багре негро",null,0]
[1133,null,"Скат-орляк австралийский",null,0]
[1134,null,"Гребешок раскрашенный",null,1]
[1135,null,"Краб камчатский",null,0]
[1136,null,"Угорь электрический",null,0]
[1137,null,"Сом-плоскоголовик",null,3]
[1138,null,"Терпуг Стеллера",null,5]
[1139,null,"Дискус зеленый",null,0]
[1140,null,"Палтус синекорый",null,2]
[1141,null,"Кайман черный",null,1]
[1142,null,"Подуст",null,2]
[1143,null,"Южная путассу",null,0]
[1144,null,"Налим тонкохвостый",null,14]
[1145,null,"Пескарь ленский",null,2]
[1146,null,"Чир",null,4]
[1147,null,"Лоцман",null,1]
[1148,null,"Пеленгас",null,6]
[1149,null,"Владиславия",null,1]
[1150,null,"Кохола Поколе",null,59]
[1151,null,"Пескарь",null,52]
[1152,null,"Налим средиземноморский",null,42]
[1153,null,"Меланохромис Чипока",null,48]
[1154,null,"Нандус борнейский",null,41]
[1155,null,"Форель озерная",null,57]
[1156,null,"Храмуля",null,67]
[1157,null,"Конгер мысовой",null,54]
[1158,null,"Ау",null,63]
[1159,null,"Маколор черный",null,42]
[1160,null,"Змееголов полосатый",null,59]
[1161,null,"Окунь красноглазый",null,36]
[1162,null,"Окунь песчаный",null,40]
[1163,null,"Гурами шоколадный",null,44]
[1164,null,"Широколобка красная",null,64]
[1165,null,"Камбала морская",null,57]
[1166,null,"Краппи черный",null,64]
[1167,null,"Моллинезия парусная",null,37]
[1168,null,"Лосось южноамериканский",null,40]
[1169,null,"Акула китовая",null,66]
[1170,null,"Гурами гигантский",null,39]
[1171,null,"Лещ морской обыкновенный",null,69]
[1172,null,"Бикуда",null,40]
[1173,null,"Ерш",null,70]
[1174,null,"Терпуг бурый",null,54]
[1175,null,"Томан",null,39]
[1176,null,"Махсир донгнайский",null,38]
[1177,null,"Тасманский пескарь",null,58]
[1178,null,"Аргонавт",null,38]
[1179,null,"Кабуча",null,36]
[1180,null,"Налим",null,70]
[1181,null,"Гольян Лаговского",null,58]
[1182,null,"Голец Леванидова",null,39]
[1183,null,"Волосозуб",null,43]
[1184,null,"Каракатица японская",null,47]
[1185,null,"Каранкс широкоротый",null,57]
[1186,null,"Скар рубиновый",null,56]
[1187,null,"Горбыль",null,54]
[1188,null,"Сапог рваный",null,41]
[1189,null,"Крокодил гребнистый",null,49]
[1190,null,"Голец длинноголовый",null,47]
[1191,null,"Кунджа",null,56]
[1192,null,"Змееголов лесной",null,55]
[1193,null,"Подкаменщик сибирский",null,40]
[1194,null,"Акула карибская длиннорылая",null,43]
[1195,null,"Кит горбатый",null,61]
[1196,null,"Лаванда Мбуна",null,52]
[1197,null,"Рыба-лиса",null,48]
[1198,null,"Керчак-яок",null,36]
[1199,null,"Кета",null,67]
[1200,null,"Окунь морской золотистый",null,40]
[1201,null,"Пиранья ромбовидная",null,58]
[1202,null,"Акула гигантская",null,67]
[1203,null,"Махсир оранжевоплавниковый",null,36]
[1204,null,"Окунь гладкий",null,64]
[1205,null,"Сфирена мелкочешуйная",null,66]
[1206,null,"Акула голубая",null,52]
[1207,null,"Кит синий северный",null,49]
[1208,null,"Угорь",null,58]
[1209,null,"Сейвал или кит ивасевый",null,67]
[1210,null,"Ауха",null,67]
[1211,null,"Зубатка пятнистая",null,56]
[1212,null,"Пикша",null,58]
[1213,null,"Валек",null,41]
[1214,null,"Цихлида - колибри",null,69]
[1215,null,"Ленок острорылый",null,59]
[1216,null,"Сом Нихофа",null,72]
[1217,null,"Кефаль-лобан",null,71]
[1218,null,"Угорь болотный азиатский",null,102]
[1219,null,"Себарау",null,97]
[1220,null,"Креветка - хоббит",null,89]
[1221,null,"Сом лесной",null,76]
[1222,null,"Козобородка полосатая",null,73]
[1223,null,"Змееголов коричневый",null,88]
[1224,null,"Конгер серебристый",null,74]
[1225,null,"Лещ морской белый",null,83]
[1226,null,"Лаврак полосатый",null,87]
[1227,null,"Конгер длинноперый",null,76]
[1228,null,"Каранкс Тилле",null,78]
[1229,null,"Кохола Нуи",null,103]
[1230,null,"Пыжьян",null,83]
[1231,null,"Гринда обыкновенная",null,104]
[1232,null,"Муксун",null,98]
[1233,null,"Апсил зубатый",null,73]
[1234,null,"Клоун мавританский",null,90]
[1235,null,"Навага тихоокеанская",null,73]
[1236,null,"Перка",null,98]
[1237,null,"Кайман гладколобый",null,81]
[1238,null,"Вьюн",null,95]
[1239,null,"Голец арктический",null,72]
[1240,null,"Хариус европейский",null,75]
[1241,null,"Нерка",null,72]
[1242,null,"Форель радужная",null,90]
[1243,null,"Сельдь американская",null,81]
[1244,null,"Мальма лабынкырская",null,71]
[1245,null,"Кижуч",null,93]
[1246,null,"Язь",null,78]
[1247,null,"Густера",null,82]
[1248,null,"Горбуша",null,82]
[1249,null,"Угорь короткоребристый",null,84]
[1250,null,"Осман голый",null,81]
[1251,null,"Сиг",null,96]
[1252,null,"Морской еж",null,73]
[1253,null,"Окунь малый",null,81]
[1254,null,"Пелядь",null,82]
[1255,null,"Желтокрылка",null,99]
[1256,null,"Вобла",null,75]
[1257,null,"Акула белая",null,100]
[1258,null,"Акула гренландская",null,112]
[1259,null,"Мано мано",null,129]
[1260,null,"Ехидна звездчатая",null,108]
[1261,null,"Акула серо-голубая",null,125]
[1262,null,"Полосатик Брайда",null,106]
[1263,null,"Окунь пятнистый",null,111]
[1264,null,"Скумбрия атлантическая",null,122]
[1265,null,"Форель ручьевая",null,136]
[1266,null,"Улуа",null,116]
[1267,null,"Конгер японский",null,111]
[1268,null,"Лаврак",null,108]
[1269,null,"Полосатик южный",null,114]
[1270,null,"Полурыл лесной",null,135]
[1271,null,"Калинка",null,111]
[1272,null,"Виттина короманделиана",null,122]
[1273,null,"Змееголов черный",null,115]
[1274,null,"Махи-махи",null,118]
[1275,null,"Рыба-бабочка лимонная",null,151]
[1276,null,"Ехидна грациозная",null,147]
[1277,null,"Бутылконос плоскоголовый",null,167]
[1278,null,"Рыба-каторжник",null,158]
[1279,null,"Бестер",null,144]
[1280,null,"Подлещик",null,173]
[1281,null,"Селар",null,171]
[1282,null,"Чавыча",null,148]
[1283,null,"Микижа",null,153]
[1284,null,"Сом амурский",null,158]
[1285,null,"Усач борнейский",null,164]
[1286,null,"Робало",null,167]
[1287,null,"Белуха",null,158]
[1288,null,"Кашалот",null,143]
[1289,null,"Елец сибирский",null,172]
[1290,null,"Карась золотой",null,181]
[1291,null,"Кудрепер длиннорылый",null,180]
[1292,null,"Кераи",null,199]
[1293,null,"Кохола Вилу",null,187]
[1294,null,"Окунь малоротый",null,198]
[1295,null,"Карп голый",null,184]
[1296,null,"Лещ",null,203]
[1297,null,"Махсир обыкновенный",null,192]
[1298,null,"Елец",null,197]
[1299,null,"Рыба-павлин",null,190]
[1300,null,"Спинорог крупнопятнистый",null,228]
[1301,null,"Змееголов карликовый",null,236]
[1302,null,"Рыба-меч",null,244]
[1303,null,"Группер палевый",null,243]
[1304,null,"Макрель голубая",null,224]
[1305,null,"Бабочка малавийская",null,214]
[1306,null,"Бонито",null,248]
[1307,null,"Носорог Вламинга",null,265]
[1308,null,"Усач жесткогубый",null,262]
[1309,null,"Усач Ваандерса",null,272]
[1310,null,"Полосатик малый",null,286]
[1311,null,"Акула желтая",null,312]
[1312,null,"Омуль селенгинский",null,301]
[1313,null,"Карп зеркальный",null,283]
[1314,null,"Окунь",null,300]
[1315,null,"Щучка азиатская",null,299]
[1316,null,"Ленок",null,338]
[1317,null,"Карп чешуйчатый",null,336]
[1318,null,"Усач краснохвостый",null,352]
[1319,null,"Лещ амурский черный",null,352]
[1320,null,"Макрогнатус зебровый",null,376]
[1321,null,"Голомянка",null,365]
[1322,null,"Барабулька мелкозубая",null,370]
[1323,null,"Сиган яванский",null,362]
[1324,null,"Щука обыкновенная",null,367]
[1325,null,"Красноперка",null,419]
[1326,null,"Вьюн серополосый",null,405]
[1327,null,"Усач Бэнкси",null,414]
[1328,null,"Ножезуб полосатый",null,417]
[1329,null,"Снэк",null,401]
[1330,null,"Карась серебряный",null,406]
[1331,null,"Расбора обыкновенная",null,520]
[1332,null,"Кавалла островная",null,495]
[1333,null,"Акула суповая",null,552]
[1334,null,"Акула-молот гигантская",null,550]
[1335,null,"Сазан",null,536]
[1336,null,"Анабас",null,588]
[1337,null,"Сиг амурский",null,628]
[1338,null,"Акула тигровая",null,669]
[1339,null,"Рувета",null,669]
[1340,null,"Луциан зеленый",null,645]
[1341,null,"Акула шестижаберная",null,656]
[1342,null,"Змееголов пятнистый",null,718]
[1343,null,"Каранкс желтоперый",null,741]
[1344,null,"Скат гитарный",null,931]
[1345,null,"Пагр австралийский",null,1195]
[1346,null,"Барракуда большая",null,1319]
[1347,null,"Плотва",null,1313]
[1348,null,"Сом лягушковый",null,1468]
[1349,null,"Змееголов глазчатый",null,1514]
[1350,null,"Флагохвост гавайский",null,1642]
[1351,null,"Сардинелла желтополосая",null,1624]
[1352,null,"Луциан кашмирский",null,1646]
[1353,null,"Финвал",null,7011]
[]
[]
[]
[" - иконкой отмечена рыба с повышенной ценой."]
["Главная »"]
["Цены на рыбу"]
[]
["Играй в мобильную версию Русской рыбалки Приложение доступно для Android"]
[]
["Подробнее о мобильной версии "]
[]
["Русская рыбалка"]
[]
["Загрузить игру"]
["Тарифы и оплата"]
["Обои на рабочий стол"]
["Новости"]
["Регулярные турниры"]
["Экспедиции"]
["Контакты"]
[]
["Рейтинги"]
[]
["Рейтинги игроков"]
["Таблица рекордов"]
["Командный турнирный рейтинг"]
["Командный дуэльный рейтинг"]
["Победители прошлого месяца"]
["Победители прошлого месяца (дуэли)"]
[]
["Справочник"]
[]
["Статистика сервера"]
["Цены на рыбу"]
["Список рыбы"]
["Список предметов"]
["Список водоемов"]
["Вопросы и ответы"]
["Форум"]
[]
["Мобильная версия"]
[]
["Загрузить игру МРР"]
["Помощь и советы МРР"]
["Таблица рекордов МРР"]
["Цены на рыбу МРР"]
["Карта сервера МРР"]
["Расписание турниров МРР"]
["Рейтинг команд МРР"]
[]
["Правила пользования и Тариф"]
["Лицензионный договор"]
["Регистрация"]
["Забыли пароль?"]
[]
["© ООО «Русская рыбалка». 2006-2018. Все права защищены."]

{"sheet":"Вычисления","index":3,"n_rows":56,"n_cols":5,"rows_kept":56,"cut":false,"hidden":true,"merged":[]}
[]
[null,null,4291,904,{"$f":"VLOOKUP(1353,'Выгрузка с сайта'!$A:$E,5,0)","v":7011}]
[null,null,179,278,{"$f":"VLOOKUP($A$5,'Выгрузка с сайта'!$C:$E,3,0)","v":7011}]
[null,"х",{"$f":" 1 - C3/C2","v":0.95828478210207413},{"$f":" 1 - D3/D2","v":0.69247787610619471},{"$f":" 1 - E3/E2","v":0}]
["Финвал","у",0.9036766383223076,0.71277011049343675,{"$f":"E7*E4+E6","v":0.21542205841613671}]
[null,"b",{"$f":"C5-C7*C4","v":0.21542205841613671},{"$f":"D5-D7*D4","v":0.21542205841613671},{"$f":"D6","v":0.21542205841613671}]
[null,"a",{"$f":"($C$5-$D$5)/($C$4-$D$4)","v":0.71821507839916809},{"$f":"($C$5-$D$5)/($C$4-$D$4)","v":0.71821507839916809},{"$f":"D7","v":0.71821507839916809}]
[]
[null,null,4282,4915,{"$f":"VLOOKUP(1353,'Выгрузка с сайта'!$A:$E,5,0)","v":7011}]
[null,null,30,2819,{"$f":"VLOOKUP($A$12,'Выгрузка с сайта'!$C:$E,3,0)","v":61}]
[null,"х",{"$f":" 1 - C10/C9","v":0.99299392807099485},{"$f":" 1 - D10/D9","v":0.42644964394710072},{"$f":" 1 - E10/E9","v":0.99129938667807727}]
["Кит Горбатый","у",1.0918462662952506,0.61343206646451676,{"$f":"E14*E11+E13","v":1.0904153231416605}]
[null,"b",{"$f":"C12-C14*C11","v":0.25331976651862631},{"$f":"D12-D14*D11","v":0.25331976651862631},{"$f":"D13","v":0.25331976651862631}]
[null,"a",{"$f":"($C$12-$D$12)/($C$11-$D$11)","v":0.84444272625670402},{"$f":"($C$12-$D$12)/($C$11-$D$11)","v":0.84444272625670402},{"$f":"D14","v":0.84444272625670402}]
[]
[null,1289,12730,4915,{"$f":"VLOOKUP(1353,'Выгрузка с сайта'!$A:$E,5,0)","v":7011}]
[null,null,58,1143,{"$f":"VLOOKUP($A$19,'Выгрузка с сайта'!$C:$E,3,0)","v":49}]
[null,"х",{"$f":" 1 - C17/C16","v":0.99544383346425769},{"$f":" 1 - D17/D16","v":0.76744659206510679},{"$f":" 1 - E17/E16","v":0.99301098274140631}]
["Кит синий северный","у",1.4393780101620015,1.1860464077026547,{"$f":"E21*E18+E20","v":1.4366748284551432}]
[null,"b",{"$f":"C19-C21*C18","v":0.3333234809833221},{"$f":"D19-D21*D18","v":0.33332348098332198},{"$f":"D20","v":0.33332348098332198}]
[null,"a",{"$f":"($C$19-$D$19)/($C$18-$D$18)","v":1.1111169631032662},{"$f":"($C$19-$D$19)/($C$18-$D$18)","v":1.1111169631032662},{"$f":"D21","v":1.1111169631032662}]
[]
[null,null,4282,4915,{"$f":"VLOOKUP(1353,'Выгрузка с сайта'!$A:$E,5,0)","v":7011}]
[null,null,151,652,{"$f":"VLOOKUP($A$26,'Выгрузка с сайта'!$C:$E,3,0)","v":143}]
[null,"х",{"$f":" 1 - C24/C23","v":0.9647361046240075},{"$f":" 1 - D24/D23","v":0.8673448626653103},{"$f":" 1 - E24/E23","v":0.97960348024532873}]
["Кашалот","у",1.0199457510417711,0.94140077880703943,{"$f":"E28*E25+E27","v":1.0319361269923646}]
[null,"b",{"$f":"C26-C28*C25","v":0.24189662642262444},{"$f":"D26-D28*D25","v":0.24189662642262444},{"$f":"D27","v":0.24189662642262444}]
[null,"a",{"$f":"($C$26-$D$26)/($C$25-$D$25)","v":0.8064890708349518},{"$f":"($C$26-$D$26)/($C$25-$D$25)","v":0.8064890708349518},{"$f":"D28","v":0.8064890708349518}]
[]
[null,null,12730,4915,{"$f":"VLOOKUP(1353,'Выгрузка с сайта'!$A:$E,5,0)","v":7011}]
[null,null,52,455,{"$f":"VLOOKUP($A$33,'Выгрузка с сайта'!$C:$E,3,0)","v":12}]
[null,"х",{"$f":" 1 - C31/C30","v":0.99591516103692068},{"$f":" 1 - D31/D30","v":0.90742624618514756},{"$f":" 1 - E31/E30","v":0.99828840393667095}]
["Кит горбатый-альбинос","у",1.72785708885921,1.6098661823686109,{"$f":"E35*E32+E34","v":1.7310215652406074}]
[null,"b",{"$f":"C33-C35*C32","v":0.39990620557269629},{"$f":"D33-D35*D32","v":0.39990620557269629},{"$f":"D34","v":0.39990620557269629}]
[null,"a",{"$f":"($C$33-$D$33)/($C$32-$D$32)","v":1.3333975977470673},{"$f":"($C$33-$D$33)/($C$32-$D$32)","v":1.3333975977470673},{"$f":"D35","v":1.3333975977470673}]
[]
[null,null,12730,4915,{"$f":"VLOOKUP(1353,'Выгрузка с сайта'!$A:$E,5,0)","v":7011}]
[null,null,13,16,{"$f":"VLOOKUP($A$40,'Выгрузка с сайта'!$C:$E,3,0)","v":2}]
[null,"х",{"$f":" 1 - C38/C37","v":0.9989787902592302},{"$f":" 1 - D38/D37","v":0.99674465920651067},{"$f":" 1 - E38/E37","v":0.9997147339894451}]
["Кит серый","у",0.952566527000136,0.95092123799865036,{"$f":"E42*E39+E41","v":0.95310850063393915}]
[null,"b",{"$f":"C40-C42*C39","v":0.21688505731632424},{"$f":"D40-D42*D39","v":0.21688505731632424},{"$f":"D41","v":0.21688505731632424}]
[null,"a",{"$f":"($C$40-$D$40)/($C$39-$D$39)","v":0.73643352277069463},{"$f":"($C$40-$D$40)/($C$39-$D$39)","v":0.73643352277069463},{"$f":"D42","v":0.73643352277069463}]
[]
[null,null,12730,4915,{"$f":"VLOOKUP(1353,'Выгрузка с сайта'!$A:$E,5,0)","v":7011}]
[null,null,23,303,{"$f":"VLOOKUP($A$47,'Выгрузка с сайта'!$C:$E,3,0)","v":11}]
[null,"х",{"$f":" 1 - C45/C44","v":0.99819324430479184},{"$f":" 1 - D45/D44","v":0.93835198372329609},{"$f":" 1 - E45/E44","v":0.99843103694194835}]
["Кит японский","у",2.1636521239056639,2.0639128574312569,{"$f":"E49*E46+E48","v":2.1640484601955841}]
[null,"b",{"$f":"C47-C49*C46","v":0.49993279347674613},{"$f":"D47-D49*D46","v":0.49993279347674613},{"$f":"D48","v":0.49993279347674613}]
[null,"a",{"$f":"($C$47-$D$47)/($C$46-$D$46)","v":1.6667307056236815},{"$f":"($C$47-$D$47)/($C$46-$D$46)","v":1.6667307056236815},{"$f":"D49","v":1.6667307056236815}]
[]
[null,null,12730,4915,{"$f":"VLOOKUP(1353,'Выгрузка с сайта'!$A:$E,5,0)","v":7011}]
[null,null,199,117,{"$f":"VLOOKUP($A$54,'Выгрузка с сайта'!$C:$E,3,0)","v":67}]
[null,"х",{"$f":" 1 - C52/C51","v":0.98436763550667716},{"$f":" 1 - D52/D51","v":0.97619532044760937},{"$f":" 1 - E52/E51","v":0.9904435886464128}]
["Сейвал или кит ивасевый","у",0.61007123665853236,0.60618136174091253,{"$f":"E56*E53+E55","v":0.61296328102393738}]
[null,"b",{"$f":"C54-C56*C53","v":0.14152995461073287},{"$f":"D54-D56*D53","v":0.14152995461073287},{"$f":"D55","v":0.14152995461073287}]
[null,"a",{"$f":"($C$54-$D$54)/($C$53-$D$53)","v":0.47598200626194936},{"$f":"($C$54-$D$54)/($C$53-$D$53)","v":0.47598200626194936},{"$f":"D56","v":0.47598200626194936}]